Workbook

Sheet DM CALC ex BILLS JAN
B3: Trade Date | C3: 2014-01-31
B4: Settle Date | C4: 2014-01-31 | H4: Principal | I4: =+I6-I5 -> 100.0000002 | K4: NOTES:
H5: Accrued Interest | I5: =0 -> 0 | K5: This example takes place at auction.
B6: Interest Accrual/Last Cpn | C6: 2014-01-31 | E6: Coupon Pmts | H6: Total Money | I6: =+W18 -> 100.0000002 | K6: Assume you only have information as of the auction date of 1/31/2014
B7: Next Coupon | C7: =EOMONTH(C6,3) -> 2014-04-30 | E7: =+C7 -> 2014-04-30 | K7: You may changeSpread (cell C11) and Discount Margin (cell C13) and the spreadsheet will still calculate accurately.
B8: Maturity | C8: =EOMONTH(C6,24) -> 2016-01-31 | E8: =+EOMONTH(E7,3) -> 2014-07-31 | H8: Clean Price | I8: =100*I4/C10 -> 100.0000002 | K8: Auction High Rates provided are purely for illustrative purposes and do not reflect historical or predicted 13-week Bill auction results
E9: =+EOMONTH(E8,3) -> 2014-10-31 | K9: Market participants are strongly advised to utilize the daily interest accrual rates that will be published on Treasury Direct when calculating
B10: Face Amount | C10: 100 | E10: 2015-01-31 | K10: coupon payments
B11: Spread | C11: 0.0012 | E11: 2015-04-30
E12: 2015-07-31
B13: Discount Margin | C13: 0.0012 | E13: 2015-10-31
E14: 2016-01-31
P18: TOTALS | Q18: =SUM(Q21:Q1152) -> 0.54761534 | R18: =SUM(R21:R1152) -> 100 | S18: =SUM(S21:S1152) -> 100.5476153 | W18: =SUM(W21:W1152) -> 100.0000002
A19: 13-Week Bill Information
A20: Auction Date | B20: Issue Date | C20: Maturity Dt | D20: Auction High Rate | E20: Auction Clearing Price | G20: Accrual Start | H20: Accrual End | I20: # of Days | J20: Denominator | K20: Time | L20: Index Rate | M20: Spread | N20: Interest Rate | O20: Daily Interest | P20: Accrued Interest(no present value applied) | Q20: Coupon Payment | R20: Principal Payment | S20: Total Cash Flow | T20: Discount Rate (Index Rate + Discount Margin) | U20: Compound Factor, Ti | V20: Compound Factor, T1 to Ti | W20: Present Value of Total Cash Flow
A21: 2014-01-06 | B21: 2014-01-09 | C21: =+B21+13*7 -> 2014-04-10 | D21: 0.00095 | E21: =PRICEDISC(B21,C21,D21,100,2) -> 99.97598611 | G21: 2014-01-31 | H21: =+G21+1 -> 2014-02-01 | I21: =+H21-G21 -> 1 | J21: 360 | K21: =I21/J21 -> 0.002777777778 | L21: =ROUND(360/(INDEX($C$21:$C$32,MATCH(G21-1,$A$21:$A$32,1))-INDEX($B$21:$B$32,MATCH(G21-1,$A$21:$A$32,1)))*((100/INDEX($E$21:$E$32,MATCH(G21-1,$A$21:$A$32,1)))-1),11) -> 0.00150056897 | M21: =+$C$11 -> 0.0012 | N21: =MAX(0,M21+L21) -> 0.00270056897 | O21: =ROUND(N21*$C$10*K21,9) -> 0.000750158 | P21: =+O21 -> 0.000750158 | Q21: 0 | R21: 0 | S21: =+R21+Q21 -> 0 | T21: =L21+$C$13 -> 0.00270056897
A22: 2014-01-13 | B22: 2014-01-16 | C22: =+B22+13*7 -> 2014-04-17 | D22: 0.0011 | E22: =PRICEDISC(B22,C22,D22,100,2) -> 99.97219444 | G22: =+H21 -> 2014-02-01 | H22: =+G22+1 -> 2014-02-02 | I22: =+H22-G22 -> 1 | J22: 360 | K22: =I22/J22 -> 0.002777777778 | L22: =L21 -> 0.00150056897 | M22: 0.0012 | N22: =MAX(0,M22+L22) -> 0.00270056897 | O22: =ROUND(N22*$C$10*K22,9) -> 0.000750158 | P22: =+P21+O22-Q21 -> 0.001500316 | Q22: 0 | R22: 0 | S22: =+R22+Q22 -> 0 | T22: =L22+$C$13 -> 0.00270056897
A23: 2014-01-21 | B23: 2014-01-23 | C23: 2014-04-24 | D23: 0.0013 | E23: 99.96713889 | G23: =+H22 -> 2014-02-02 | H23: 2014-02-03 | I23: 1 | J23: 360 | K23: 0.002777777778 | L23: =L22 -> 0.00150056897 | M23: 0.0012 | N23: 0.00270056897 | O23: 0.000750158 | P23: =+P22+O23-Q22 -> 0.002250474 | Q23: 0 | R23: 0 | S23: 0 | T23: 0.00270056897
A24: 2014-01-27 | B24: 2014-01-30 | C24: 2014-05-01 | D24: 0.0015 | E24: 99.96208333 | G24: 2014-02-03 | H24: 2014-02-04 | I24: 1 | J24: 360 | K24: 0.002777777778 | L24: 0.00150056897 | M24: 0.0012 | N24: 0.00270056897 | O24: 0.000750158 | P24: 0.003000632 | Q24: 0 | R24: 0 | S24: 0 | T24: 0.00270056897
G25: 2014-02-04 | H25: 2014-02-05 | I25: 1 | J25: 360 | K25: 0.002777777778 | L25: 0.00150056897 | M25: 0.0012 | N25: 0.00270056897 | O25: 0.000750158 | P25: 0.00375079 | Q25: 0 | R25: 0 | S25: 0 | T25: 0.00270056897
G26: 2014-02-05 | H26: 2014-02-06 | I26: 1 | J26: 360 | K26: 0.002777777778 | L26: 0.00150056897 | M26: 0.0012 | N26: 0.00270056897 | O26: 0.000750158 | P26: 0.004500948 | Q26: 0 | R26: 0 | S26: 0 | T26: 0.00270056897
G27: 2014-02-06 | H27: 2014-02-07 | I27: 1 | J27: 360 | K27: 0.002777777778 | L27: 0.00150056897 | M27: 0.0012 | N27: 0.00270056897 | O27: 0.000750158 | P27: 0.005251106 | Q27: 0 | R27: 0 | S27: 0 | T27: 0.00270056897
G28: 2014-02-07 | H28: 2014-02-08 | I28: 1 | J28: 360 | K28: 0.002777777778 | L28: 0.00150056897 | M28: 0.0012 | N28: 0.00270056897 | O28: 0.000750158 | P28: 0.006001264 | Q28: 0 | R28: 0 | S28: 0 | T28: 0.00270056897
G29: 2014-02-08 | H29: 2014-02-09 | I29: 1 | J29: 360 | K29: 0.002777777778 | L29: 0.00150056897 | M29: 0.0012 | N29: 0.00270056897 | O29: 0.000750158 | P29: 0.006751422 | Q29: 0 | R29: 0 | S29: 0 | T29: 0.00270056897
G30: 2014-02-09 | H30: 2014-02-10 | I30: 1 | J30: 360 | K30: 0.002777777778 | L30: 0.00150056897 | M30: 0.0012 | N30: 0.00270056897 | O30: 0.000750158 | P30: 0.00750158 | Q30: 0 | R30: 0 | S30: 0 | T30: 0.00270056897
G31: 2014-02-10 | H31: 2014-02-11 | I31: 1 | J31: 360 | K31: 0.002777777778 | L31: 0.00150056897 | M31: 0.0012 | N31: 0.00270056897 | O31: 0.000750158 | P31: 0.008251738 | Q31: 0 | R31: 0 | S31: 0 | T31: 0.00270056897
G32: 2014-02-11 | H32: 2014-02-12 | I32: 1 | J32: 360 | K32: 0.002777777778 | L32: 0.00150056897 | M32: 0.0012 | N32: 0.00270056897 | O32: 0.000750158 | P32: 0.009001896 | Q32: 0 | R32: 0 | S32: 0 | T32: 0.00270056897
G33: 2014-02-12 | H33: 2014-02-13 | I33: 1 | J33: 360 | K33: 0.002777777778 | L33: 0.00150056897 | M33: 0.0012 | N33: 0.00270056897 | O33: 0.000750158 | P33: 0.009752054 | Q33: 0 | R33: 0 | S33: 0 | T33: 0.00270056897
G34: 2014-02-13 | H34: 2014-02-14 | I34: 1 | J34: 360 | K34: 0.002777777778 | L34: 0.00150056897 | M34: 0.0012 | N34: 0.00270056897 | O34: 0.000750158 | P34: 0.010502212 | Q34: 0 | R34: 0 | S34: 0 | T34: 0.00270056897
G35: 2014-02-14 | H35: 2014-02-15 | I35: 1 | J35: 360 | K35: 0.002777777778 | L35: 0.00150056897 | M35: 0.0012 | N35: 0.00270056897 | O35: 0.000750158 | P35: 0.01125237 | Q35: 0 | R35: 0 | S35: 0 | T35: 0.00270056897
G36: 2014-02-15 | H36: 2014-02-16 | I36: 1 | J36: 360 | K36: 0.002777777778 | L36: 0.00150056897 | M36: 0.0012 | N36: 0.00270056897 | O36: 0.000750158 | P36: 0.012002528 | Q36: 0 | R36: 0 | S36: 0 | T36: 0.00270056897
G37: 2014-02-16 | H37: 2014-02-17 | I37: 1 | J37: 360 | K37: 0.002777777778 | L37: 0.00150056897 | M37: 0.0012 | N37: 0.00270056897 | O37: 0.000750158 | P37: 0.012752686 | Q37: 0 | R37: 0 | S37: 0 | T37: 0.00270056897
G38: 2014-02-17 | H38: 2014-02-18 | I38: 1 | J38: 360 | K38: 0.002777777778 | L38: 0.00150056897 | M38: 0.0012 | N38: 0.00270056897 | O38: 0.000750158 | P38: 0.013502844 | Q38: 0 | R38: 0 | S38: 0 | T38: 0.00270056897
G39: 2014-02-18 | H39: 2014-02-19 | I39: 1 | J39: 360 | K39: 0.002777777778 | L39: 0.00150056897 | M39: 0.0012 | N39: 0.00270056897 | O39: 0.000750158 | P39: 0.014253002 | Q39: 0 | R39: 0 | S39: 0 | T39: 0.00270056897
G40: 2014-02-19 | H40: 2014-02-20 | I40: 1 | J40: 360 | K40: 0.002777777778 | L40: 0.00150056897 | M40: 0.0012 | N40: 0.00270056897 | O40: 0.000750158 | P40: 0.01500316 | Q40: 0 | R40: 0 | S40: 0 | T40: 0.00270056897
G41: 2014-02-20 | H41: 2014-02-21 | I41: 1 | J41: 360 | K41: 0.002777777778 | L41: 0.00150056897 | M41: 0.0012 | N41: 0.00270056897 | O41: 0.000750158 | P41: 0.015753318 | Q41: 0 | R41: 0 | S41: 0 | T41: 0.00270056897
G42: 2014-02-21 | H42: 2014-02-22 | I42: 1 | J42: 360 | K42: 0.002777777778 | L42: 0.00150056897 | M42: 0.0012 | N42: 0.00270056897 | O42: 0.000750158 | P42: 0.016503476 | Q42: 0 | R42: 0 | S42: 0 | T42: 0.00270056897
G43: 2014-02-22 | H43: 2014-02-23 | I43: 1 | J43: 360 | K43: 0.002777777778 | L43: 0.00150056897 | M43: 0.0012 | N43: 0.00270056897 | O43: 0.000750158 | P43: 0.017253634 | Q43: 0 | R43: 0 | S43: 0 | T43: 0.00270056897
G44: 2014-02-23 | H44: 2014-02-24 | I44: 1 | J44: 360 | K44: 0.002777777778 | L44: 0.00150056897 | M44: 0.0012 | N44: 0.00270056897 | O44: 0.000750158 | P44: 0.018003792 | Q44: 0 | R44: 0 | S44: 0 | T44: 0.00270056897
G45: 2014-02-24 | H45: 2014-02-25 | I45: 1 | J45: 360 | K45: 0.002777777778 | L45: 0.00150056897 | M45: 0.0012 | N45: 0.00270056897 | O45: 0.000750158 | P45: 0.01875395 | Q45: 0 | R45: 0 | S45: 0 | T45: 0.00270056897
G46: 2014-02-25 | H46: 2014-02-26 | I46: 1 | J46: 360 | K46: 0.002777777778 | L46: 0.00150056897 | M46: 0.0012 | N46: 0.00270056897 | O46: 0.000750158 | P46: 0.019504108 | Q46: 0 | R46: 0 | S46: 0 | T46: 0.00270056897
G47: 2014-02-26 | H47: 2014-02-27 | I47: 1 | J47: 360 | K47: 0.002777777778 | L47: 0.00150056897 | M47: 0.0012 | N47: 0.00270056897 | O47: 0.000750158 | P47: 0.020254266 | Q47: 0 | R47: 0 | S47: 0 | T47: 0.00270056897
G48: 2014-02-27 | H48: 2014-02-28 | I48: 1 | J48: 360 | K48: 0.002777777778 | L48: 0.00150056897 | M48: 0.0012 | N48: 0.00270056897 | O48: 0.000750158 | P48: 0.021004424 | Q48: 0 | R48: 0 | S48: 0 | T48: 0.00270056897
G49: 2014-02-28 | H49: 2014-03-01 | I49: 1 | J49: 360 | K49: 0.002777777778 | L49: 0.00150056897 | M49: 0.0012 | N49: 0.00270056897 | O49: 0.000750158 | P49: 0.021754582 | Q49: 0 | R49: 0 | S49: 0 | T49: 0.00270056897
G50: 2014-03-01 | H50: 2014-03-02 | I50: 1 | J50: 360 | K50: 0.002777777778 | L50: 0.00150056897 | M50: 0.0012 | N50: 0.00270056897 | O50: 0.000750158 | P50: 0.02250474 | Q50: 0 | R50: 0 | S50: 0 | T50: 0.00270056897
G51: 2014-03-02 | H51: 2014-03-03 | I51: 1 | J51: 360 | K51: 0.002777777778 | L51: 0.00150056897 | M51: 0.0012 | N51: 0.00270056897 | O51: 0.000750158 | P51: 0.023254898 | Q51: 0 | R51: 0 | S51: 0 | T51: 0.00270056897
G52: 2014-03-03 | H52: 2014-03-04 | I52: 1 | J52: 360 | K52: 0.002777777778 | L52: 0.00150056897 | M52: 0.0012 | N52: 0.00270056897 | O52: 0.000750158 | P52: 0.024005056 | Q52: 0 | R52: 0 | S52: 0 | T52: 0.00270056897
G53: 2014-03-04 | H53: 2014-03-05 | I53: 1 | J53: 360 | K53: 0.002777777778 | L53: 0.00150056897 | M53: 0.0012 | N53: 0.00270056897 | O53: 0.000750158 | P53: 0.024755214 | Q53: 0 | R53: 0 | S53: 0 | T53: 0.00270056897
G54: 2014-03-05 | H54: 2014-03-06 | I54: 1 | J54: 360 | K54: 0.002777777778 | L54: 0.00150056897 | M54: 0.0012 | N54: 0.00270056897 | O54: 0.000750158 | P54: 0.025505372 | Q54: 0 | R54: 0 | S54: 0 | T54: 0.00270056897
G55: 2014-03-06 | H55: 2014-03-07 | I55: 1 | J55: 360 | K55: 0.002777777778 | L55: 0.00150056897 | M55: 0.0012 | N55: 0.00270056897 | O55: 0.000750158 | P55: 0.02625553 | Q55: 0 | R55: 0 | S55: 0 | T55: 0.00270056897
G56: 2014-03-07 | H56: 2014-03-08 | I56: 1 | J56: 360 | K56: 0.002777777778 | L56: 0.00150056897 | M56: 0.0012 | N56: 0.00270056897 | O56: 0.000750158 | P56: 0.027005688 | Q56: 0 | R56: 0 | S56: 0 | T56: 0.00270056897
G57: 2014-03-08 | H57: 2014-03-09 | I57: 1 | J57: 360 | K57: 0.002777777778 | L57: 0.00150056897 | M57: 0.0012 | N57: 0.00270056897 | O57: 0.000750158 | P57: 0.027755846 | Q57: 0 | R57: 0 | S57: 0 | T57: 0.00270056897
G58: 2014-03-09 | H58: 2014-03-10 | I58: 1 | J58: 360 | K58: 0.002777777778 | L58: 0.00150056897 | M58: 0.0012 | N58: 0.00270056897 | O58: 0.000750158 | P58: 0.028506004 | Q58: 0 | R58: 0 | S58: 0 | T58: 0.00270056897
G59: 2014-03-10 | H59: 2014-03-11 | I59: 1 | J59: 360 | K59: 0.002777777778 | L59: 0.00150056897 | M59: 0.0012 | N59: 0.00270056897 | O59: 0.000750158 | P59: 0.029256162 | Q59: 0 | R59: 0 | S59: 0 | T59: 0.00270056897
G60: 2014-03-11 | H60: 2014-03-12 | I60: 1 | J60: 360 | K60: 0.002777777778 | L60: 0.00150056897 | M60: 0.0012 | N60: 0.00270056897 | O60: 0.000750158 | P60: 0.03000632 | Q60: 0 | R60: 0 | S60: 0 | T60: 0.00270056897
G61: 2014-03-12 | H61: 2014-03-13 | I61: 1 | J61: 360 | K61: 0.002777777778 | L61: 0.00150056897 | M61: 0.0012 | N61: 0.00270056897 | O61: 0.000750158 | P61: 0.030756478 | Q61: 0 | R61: 0 | S61: 0 | T61: 0.00270056897
G62: 2014-03-13 | H62: 2014-03-14 | I62: 1 | J62: 360 | K62: 0.002777777778 | L62: 0.00150056897 | M62: 0.0012 | N62: 0.00270056897 | O62: 0.000750158 | P62: 0.031506636 | Q62: 0 | R62: 0 | S62: 0 | T62: 0.00270056897
G63: 2014-03-14 | H63: 2014-03-15 | I63: 1 | J63: 360 | K63: 0.002777777778 | L63: 0.00150056897 | M63: 0.0012 | N63: 0.00270056897 | O63: 0.000750158 | P63: =+P62+O63-Q62 -> 0.032256794 | Q63: 0 | R63: 0 | S63: 0 | T63: 0.00270056897
G64: 2014-03-15 | H64: 2014-03-16 | I64: 1 | J64: 360 | K64: 0.002777777778 | L64: 0.00150056897 | M64: 0.0012 | N64: 0.00270056897 | O64: 0.000750158 | P64: 0.033006952 | Q64: 0 | R64: 0 | S64: 0 | T64: 0.00270056897
G65: 2014-03-16 | H65: 2014-03-17 | I65: 1 | J65: 360 | K65: 0.002777777778 | L65: 0.00150056897 | M65: 0.0012 | N65: 0.00270056897 | O65: 0.000750158 | P65: 0.03375711 | Q65: 0 | R65: 0 | S65: 0 | T65: 0.00270056897
G66: 2014-03-17 | H66: 2014-03-18 | I66: 1 | J66: 360 | K66: 0.002777777778 | L66: 0.00150056897 | M66: 0.0012 | N66: 0.00270056897 | O66: 0.000750158 | P66: 0.034507268 | Q66: 0 | R66: 0 | S66: 0 | T66: 0.00270056897
G67: 2014-03-18 | H67: 2014-03-19 | I67: 1 | J67: 360 | K67: 0.002777777778 | L67: 0.00150056897 | M67: 0.0012 | N67: 0.00270056897 | O67: 0.000750158 | P67: 0.035257426 | Q67: 0 | R67: 0 | S67: 0 | T67: 0.00270056897
G68: 2014-03-19 | H68: 2014-03-20 | I68: 1 | J68: 360 | K68: 0.002777777778 | L68: 0.00150056897 | M68: 0.0012 | N68: 0.00270056897 | O68: 0.000750158 | P68: 0.036007584 | Q68: 0 | R68: 0 | S68: 0 | T68: 0.00270056897
G69: 2014-03-20 | H69: 2014-03-21 | I69: 1 | J69: 360 | K69: 0.002777777778 | L69: 0.00150056897 | M69: 0.0012 | N69: 0.00270056897 | O69: 0.000750158 | P69: 0.036757742 | Q69: 0 | R69: 0 | S69: 0 | T69: 0.00270056897
G70: 2014-03-21 | H70: 2014-03-22 | I70: 1 | J70: 360 | K70: 0.002777777778 | L70: 0.00150056897 | M70: 0.0012 | N70: 0.00270056897 | O70: 0.000750158 | P70: 0.0375079 | Q70: 0 | R70: 0 | S70: 0 | T70: 0.00270056897
G71: 2014-03-22 | H71: 2014-03-23 | I71: 1 | J71: 360 | K71: 0.002777777778 | L71: 0.00150056897 | M71: 0.0012 | N71: 0.00270056897 | O71: 0.000750158 | P71: =+P70+O71-Q70 -> 0.038258058 | Q71: 0 | R71: 0 | S71: 0 | T71: 0.00270056897
G72: 2014-03-23 | H72: 2014-03-24 | I72: 1 | J72: 360 | K72: 0.002777777778 | L72: 0.00150056897 | M72: 0.0012 | N72: 0.00270056897 | O72: 0.000750158 | P72: 0.039008216 | Q72: 0 | R72: 0 | S72: 0 | T72: 0.00270056897
G73: 2014-03-24 | H73: 2014-03-25 | I73: 1 | J73: 360 | K73: 0.002777777778 | L73: 0.00150056897 | M73: 0.0012 | N73: 0.00270056897 | O73: 0.000750158 | P73: 0.039758374 | Q73: 0 | R73: 0 | S73: 0 | T73: 0.00270056897
G74: 2014-03-25 | H74: 2014-03-26 | I74: 1 | J74: 360 | K74: 0.002777777778 | L74: 0.00150056897 | M74: 0.0012 | N74: 0.00270056897 | O74: 0.000750158 | P74: 0.040508532 | Q74: 0 | R74: 0 | S74: 0 | T74: 0.00270056897
G75: 2014-03-26 | H75: 2014-03-27 | I75: 1 | J75: 360 | K75: 0.002777777778 | L75: 0.00150056897 | M75: 0.0012 | N75: 0.00270056897 | O75: 0.000750158 | P75: 0.04125869 | Q75: 0 | R75: 0 | S75: 0 | T75: 0.00270056897
G76: 2014-03-27 | H76: 2014-03-28 | I76: 1 | J76: 360 | K76: 0.002777777778 | L76: 0.00150056897 | M76: 0.0012 | N76: 0.00270056897 | O76: 0.000750158 | P76: 0.042008848 | Q76: 0 | R76: 0 | S76: 0 | T76: 0.00270056897
G77: 2014-03-28 | H77: 2014-03-29 | I77: 1 | J77: 360 | K77: 0.002777777778 | L77: 0.00150056897 | M77: 0.0012 | N77: 0.00270056897 | O77: 0.000750158 | P77: 0.042759006 | Q77: 0 | R77: 0 | S77: 0 | T77: 0.00270056897
G78: 2014-03-29 | H78: 2014-03-30 | I78: 1 | J78: 360 | K78: 0.002777777778 | L78: 0.00150056897 | M78: 0.0012 | N78: 0.00270056897 | O78: 0.000750158 | P78: 0.043509164 | Q78: 0 | R78: 0 | S78: 0 | T78: 0.00270056897
G79: 2014-03-30 | H79: 2014-03-31 | I79: 1 | J79: 360 | K79: 0.002777777778 | L79: 0.00150056897 | M79: 0.0012 | N79: 0.00270056897 | O79: 0.000750158 | P79: 0.044259322 | Q79: 0 | R79: 0 | S79: 0 | T79: 0.00270056897
G80: 2014-03-31 | H80: 2014-04-01 | I80: 1 | J80: 360 | K80: 0.002777777778 | L80: 0.00150056897 | M80: 0.0012 | N80: 0.00270056897 | O80: 0.000750158 | P80: 0.04500948 | Q80: 0 | R80: 0 | S80: 0 | T80: 0.00270056897
G81: 2014-04-01 | H81: 2014-04-02 | I81: 1 | J81: 360 | K81: 0.002777777778 | L81: 0.00150056897 | M81: 0.0012 | N81: 0.00270056897 | O81: 0.000750158 | P81: 0.045759638 | Q81: 0 | R81: 0 | S81: 0 | T81: 0.00270056897
G82: 2014-04-02 | H82: 2014-04-03 | I82: 1 | J82: 360 | K82: 0.002777777778 | L82: 0.00150056897 | M82: 0.0012 | N82: 0.00270056897 | O82: 0.000750158 | P82: 0.046509796 | Q82: 0 | R82: 0 | S82: 0 | T82: 0.00270056897
G83: 2014-04-03 | H83: 2014-04-04 | I83: 1 | J83: 360 | K83: 0.002777777778 | L83: 0.00150056897 | M83: 0.0012 | N83: 0.00270056897 | O83: 0.000750158 | P83: 0.047259954 | Q83: 0 | R83: 0 | S83: 0 | T83: 0.00270056897
G84: 2014-04-04 | H84: 2014-04-05 | I84: 1 | J84: 360 | K84: 0.002777777778 | L84: 0.00150056897 | M84: 0.0012 | N84: 0.00270056897 | O84: 0.000750158 | P84: 0.048010112 | Q84: 0 | R84: 0 | S84: 0 | T84: 0.00270056897
G85: 2014-04-05 | H85: 2014-04-06 | I85: 1 | J85: 360 | K85: 0.002777777778 | L85: 0.00150056897 | M85: =+$C$11 -> 0.0012 | N85: 0.00270056897 | O85: 0.000750158 | P85: 0.04876027 | Q85: 0 | R85: 0 | S85: 0 | T85: 0.00270056897
G86: 2014-04-06 | H86: =+G86+1 -> 2014-04-07 | I86: =+H86-G86 -> 1 | J86: 360 | K86: =I86/J86 -> 0.002777777778 | L86: 0.00150056897 | M86: 0.0012 | N86: =MAX(0,M86+L86) -> 0.00270056897 | O86: =ROUND(N86*$C$10*K86,9) -> 0.000750158 | P86: 0.049510428 | Q86: 0 | R86: 0 | S86: =+R86+Q86 -> 0 | T86: =L86+$C$13 -> 0.00270056897
G87: =+H86 -> 2014-04-07 | H87: 2014-04-08 | I87: 1 | J87: 360 | K87: 0.002777777778 | L87: =L86 -> 0.00150056897 | M87: 0.0012 | N87: 0.00270056897 | O87: 0.000750158 | P87: =+P86+O87-Q86 -> 0.050260586 | Q87: 0 | R87: 0 | S87: 0 | T87: 0.00270056897
G88: 2014-04-08 | H88: 2014-04-09 | I88: 1 | J88: 360 | K88: 0.002777777778 | L88: 0.00150056897 | M88: 0.0012 | N88: 0.00270056897 | O88: 0.000750158 | P88: 0.051010744 | Q88: 0 | R88: 0 | S88: 0 | T88: 0.00270056897
G89: 2014-04-09 | H89: 2014-04-10 | I89: 1 | J89: 360 | K89: 0.002777777778 | L89: 0.00150056897 | M89: 0.0012 | N89: 0.00270056897 | O89: 0.000750158 | P89: 0.051760902 | Q89: 0 | R89: 0 | S89: 0 | T89: 0.00270056897
G90: 2014-04-10 | H90: 2014-04-11 | I90: 1 | J90: 360 | K90: 0.002777777778 | L90: 0.00150056897 | M90: 0.0012 | N90: 0.00270056897 | O90: 0.000750158 | P90: 0.05251106 | Q90: 0 | R90: 0 | S90: 0 | T90: 0.00270056897
G91: 2014-04-11 | H91: 2014-04-12 | I91: 1 | J91: 360 | K91: 0.002777777778 | L91: 0.00150056897 | M91: 0.0012 | N91: 0.00270056897 | O91: 0.000750158 | P91: 0.053261218 | Q91: 0 | R91: 0 | S91: 0 | T91: 0.00270056897
G92: 2014-04-12 | H92: 2014-04-13 | I92: 1 | J92: 360 | K92: 0.002777777778 | L92: 0.00150056897 | M92: 0.0012 | N92: 0.00270056897 | O92: 0.000750158 | P92: 0.054011376 | Q92: 0 | R92: 0 | S92: 0 | T92: 0.00270056897
G93: 2014-04-13 | H93: 2014-04-14 | I93: 1 | J93: 360 | K93: 0.002777777778 | L93: 0.00150056897 | M93: 0.0012 | N93: 0.00270056897 | O93: 0.000750158 | P93: 0.054761534 | Q93: 0 | R93: 0 | S93: 0 | T93: 0.00270056897
G94: 2014-04-14 | H94: 2014-04-15 | I94: 1 | J94: 360 | K94: 0.002777777778 | L94: 0.00150056897 | M94: 0.0012 | N94: 0.00270056897 | O94: 0.000750158 | P94: 0.055511692 | Q94: 0 | R94: 0 | S94: 0 | T94: 0.00270056897
G95: 2014-04-15 | H95: 2014-04-16 | I95: 1 | J95: 360 | K95: 0.002777777778 | L95: 0.00150056897 | M95: 0.0012 | N95: 0.00270056897 | O95: 0.000750158 | P95: 0.05626185 | Q95: 0 | R95: 0 | S95: 0 | T95: 0.00270056897
G96: 2014-04-16 | H96: 2014-04-17 | I96: 1 | J96: 360 | K96: 0.002777777778 | L96: 0.00150056897 | M96: 0.0012 | N96: 0.00270056897 | O96: 0.000750158 | P96: 0.057012008 | Q96: 0 | R96: 0 | S96: 0 | T96: 0.00270056897
G97: 2014-04-17 | H97: 2014-04-18 | I97: 1 | J97: 360 | K97: 0.002777777778 | L97: 0.00150056897 | M97: 0.0012 | N97: 0.00270056897 | O97: 0.000750158 | P97: 0.057762166 | Q97: 0 | R97: 0 | S97: 0 | T97: 0.00270056897
G98: 2014-04-18 | H98: 2014-04-19 | I98: 1 | J98: 360 | K98: 0.002777777778 | L98: 0.00150056897 | M98: 0.0012 | N98: 0.00270056897 | O98: 0.000750158 | P98: 0.058512324 | Q98: 0 | R98: 0 | S98: 0 | T98: 0.00270056897
G99: 2014-04-19 | H99: 2014-04-20 | I99: 1 | J99: 360 | K99: 0.002777777778 | L99: 0.00150056897 | M99: 0.0012 | N99: 0.00270056897 | O99: 0.000750158 | P99: 0.059262482 | Q99: 0 | R99: 0 | S99: 0 | T99: 0.00270056897
G100: 2014-04-20 | H100: 2014-04-21 | I100: 1 | J100: 360 | K100: 0.002777777778 | L100: 0.00150056897 | M100: 0.0012 | N100: 0.00270056897 | O100: 0.000750158 | P100: 0.06001264 | Q100: 0 | R100: 0 | S100: 0 | T100: 0.00270056897
G101: 2014-04-21 | H101: 2014-04-22 | I101: 1 | J101: 360 | K101: 0.002777777778 | L101: 0.00150056897 | M101: 0.0012 | N101: 0.00270056897 | O101: 0.000750158 | P101: 0.060762798 | Q101: 0 | R101: 0 | S101: 0 | T101: 0.00270056897
G102: 2014-04-22 | H102: 2014-04-23 | I102: 1 | J102: 360 | K102: 0.002777777778 | L102: 0.00150056897 | M102: 0.0012 | N102: 0.00270056897 | O102: 0.000750158 | P102: 0.061512956 | Q102: 0 | R102: 0 | S102: 0 | T102: 0.00270056897
G103: 2014-04-23 | H103: 2014-04-24 | I103: 1 | J103: 360 | K103: 0.002777777778 | L103: 0.00150056897 | M103: 0.0012 | N103: 0.00270056897 | O103: 0.000750158 | P103: 0.062263114 | Q103: 0 | R103: 0 | S103: 0 | T103: 0.00270056897
G104: 2014-04-24 | H104: 2014-04-25 | I104: 1 | J104: 360 | K104: 0.002777777778 | L104: 0.00150056897 | M104: 0.0012 | N104: 0.00270056897 | O104: 0.000750158 | P104: 0.063013272 | Q104: 0 | R104: 0 | S104: 0 | T104: 0.00270056897
G105: 2014-04-25 | H105: 2014-04-26 | I105: 1 | J105: 360 | K105: 0.002777777778 | L105: 0.00150056897 | M105: 0.0012 | N105: 0.00270056897 | O105: 0.000750158 | P105: 0.06376343 | Q105: 0 | R105: 0 | S105: 0 | T105: 0.00270056897
G106: 2014-04-26 | H106: 2014-04-27 | I106: 1 | J106: 360 | K106: 0.002777777778 | L106: 0.00150056897 | M106: 0.0012 | N106: 0.00270056897 | O106: 0.000750158 | P106: 0.064513588 | Q106: 0 | R106: 0 | S106: 0 | T106: 0.00270056897
G107: 2014-04-27 | H107: 2014-04-28 | I107: 1 | J107: 360 | K107: 0.002777777778 | L107: 0.00150056897 | M107: 0.0012 | N107: 0.00270056897 | O107: 0.000750158 | P107: 0.065263746 | Q107: 0 | R107: 0 | S107: 0 | T107: 0.00270056897
G108: 2014-04-28 | H108: 2014-04-29 | I108: 1 | J108: 360 | K108: 0.002777777778 | L108: 0.00150056897 | M108: 0.0012 | N108: 0.00270056897 | O108: 0.000750158 | P108: 0.066013904 | Q108: 0 | R108: 0 | S108: 0 | T108: 0.00270056897
G109: 2014-04-29 | H109: 2014-04-30 | I109: 1 | J109: 360 | K109: 0.002777777778 | L109: 0.00150056897 | M109: 0.0012 | N109: 0.00270056897 | O109: 0.000750158 | P109: =+P108+O109-Q108 -> 0.066764062 | Q109: =P109 -> 0.066764062 | R109: 0 | S109: =+R109+Q109 -> 0.066764062 | T109: 0.00270056897 | U109: =ROUND((1+AVERAGE(T21:T109)*SUM(K21:K109)),9) -> 1.000667641 | V109: =ROUND(U109,9) -> 1.000667641 | W109: =ROUND(S109/V109,9) -> 0.066719517
G110: 2014-04-30 | H110: 2014-05-01 | I110: 1 | J110: 360 | K110: 0.002777777778 | L110: 0.00150056897 | M110: 0.0012 | N110: 0.00270056897 | O110: 0.000750158 | P110: =+P109+O110-Q109 -> 0.000750158 | Q110: 0 | R110: 0 | S110: 0 | T110: 0.00270056897
G111: 2014-05-01 | H111: 2014-05-02 | I111: 1 | J111: 360 | K111: 0.002777777778 | L111: 0.00150056897 | M111: 0.0012 | N111: 0.00270056897 | O111: 0.000750158 | P111: 0.001500316 | Q111: 0 | R111: 0 | S111: 0 | T111: 0.00270056897
G112: 2014-05-02 | H112: 2014-05-03 | I112: 1 | J112: 360 | K112: 0.002777777778 | L112: 0.00150056897 | M112: =+$C$11 -> 0.0012 | N112: =MAX(0,M112+L112) -> 0.00270056897 | O112: 0.000750158 | P112: =+P111+O112-Q111 -> 0.002250474 | Q112: 0 | R112: 0 | S112: =+R112+Q112 -> 0 | T112: 0.00270056897
G113: 2014-05-03 | H113: 2014-05-04 | I113: 1 | J113: 360 | K113: 0.002777777778 | L113: 0.00150056897 | M113: 0.0012 | N113: 0.00270056897 | O113: 0.000750158 | P113: 0.003000632 | Q113: 0 | R113: 0 | S113: 0 | T113: 0.00270056897
G114: 2014-05-04 | H114: 2014-05-05 | I114: 1 | J114: 360 | K114: 0.002777777778 | L114: 0.00150056897 | M114: 0.0012 | N114: 0.00270056897 | O114: 0.000750158 | P114: 0.00375079 | Q114: 0 | R114: 0 | S114: 0 | T114: 0.00270056897
G115: 2014-05-05 | H115: 2014-05-06 | I115: 1 | J115: 360 | K115: 0.002777777778 | L115: 0.00150056897 | M115: 0.0012 | N115: 0.00270056897 | O115: 0.000750158 | P115: 0.004500948 | Q115: 0 | R115: 0 | S115: 0 | T115: 0.00270056897
G116: 2014-05-06 | H116: 2014-05-07 | I116: 1 | J116: 360 | K116: 0.002777777778 | L116: 0.00150056897 | M116: 0.0012 | N116: 0.00270056897 | O116: 0.000750158 | P116: 0.005251106 | Q116: 0 | R116: 0 | S116: 0 | T116: 0.00270056897
G117: 2014-05-07 | H117: 2014-05-08 | I117: 1 | J117: 360 | K117: 0.002777777778 | L117: 0.00150056897 | M117: 0.0012 | N117: 0.00270056897 | O117: 0.000750158 | P117: 0.006001264 | Q117: 0 | R117: 0 | S117: 0 | T117: 0.00270056897
G118: 2014-05-08 | H118: 2014-05-09 | I118: 1 | J118: 360 | K118: 0.002777777778 | L118: 0.00150056897 | M118: 0.0012 | N118: 0.00270056897 | O118: 0.000750158 | P118: 0.006751422 | Q118: 0 | R118: 0 | S118: 0 | T118: 0.00270056897
G119: 2014-05-09 | H119: 2014-05-10 | I119: 1 | J119: 360 | K119: 0.002777777778 | L119: 0.00150056897 | M119: 0.0012 | N119: 0.00270056897 | O119: 0.000750158 | P119: 0.00750158 | Q119: 0 | R119: 0 | S119: 0 | T119: 0.00270056897
G120: 2014-05-10 | H120: 2014-05-11 | I120: 1 | J120: 360 | K120: 0.002777777778 | L120: 0.00150056897 | M120: 0.0012 | N120: 0.00270056897 | O120: 0.000750158 | P120: 0.008251738 | Q120: 0 | R120: 0 | S120: 0 | T120: 0.00270056897
G121: 2014-05-11 | H121: 2014-05-12 | I121: 1 | J121: 360 | K121: 0.002777777778 | L121: 0.00150056897 | M121: 0.0012 | N121: 0.00270056897 | O121: 0.000750158 | P121: 0.009001896 | Q121: 0 | R121: 0 | S121: 0 | T121: 0.00270056897
G122: 2014-05-12 | H122: 2014-05-13 | I122: 1 | J122: 360 | K122: 0.002777777778 | L122: 0.00150056897 | M122: 0.0012 | N122: 0.00270056897 | O122: 0.000750158 | P122: 0.009752054 | Q122: 0 | R122: 0 | S122: 0 | T122: 0.00270056897
G123: 2014-05-13 | H123: 2014-05-14 | I123: 1 | J123: 360 | K123: 0.002777777778 | L123: 0.00150056897 | M123: 0.0012 | N123: 0.00270056897 | O123: 0.000750158 | P123: 0.010502212 | Q123: 0 | R123: 0 | S123: 0 | T123: 0.00270056897
G124: 2014-05-14 | H124: 2014-05-15 | I124: 1 | J124: 360 | K124: 0.002777777778 | L124: 0.00150056897 | M124: 0.0012 | N124: 0.00270056897 | O124: 0.000750158 | P124: 0.01125237 | Q124: 0 | R124: 0 | S124: 0 | T124: 0.00270056897
G125: 2014-05-15 | H125: 2014-05-16 | I125: 1 | J125: 360 | K125: 0.002777777778 | L125: 0.00150056897 | M125: 0.0012 | N125: 0.00270056897 | O125: 0.000750158 | P125: 0.012002528 | Q125: 0 | R125: 0 | S125: 0 | T125: 0.00270056897
G126: 2014-05-16 | H126: 2014-05-17 | I126: 1 | J126: 360 | K126: 0.002777777778 | L126: 0.00150056897 | M126: 0.0012 | N126: 0.00270056897 | O126: 0.000750158 | P126: 0.012752686 | Q126: 0 | R126: 0 | S126: 0 | T126: 0.00270056897
G127: 2014-05-17 | H127: 2014-05-18 | I127: 1 | J127: 360 | K127: 0.002777777778 | L127: 0.00150056897 | M127: 0.0012 | N127: 0.00270056897 | O127: 0.000750158 | P127: 0.013502844 | Q127: 0 | R127: 0 | S127: 0 | T127: 0.00270056897
G128: 2014-05-18 | H128: 2014-05-19 | I128: 1 | J128: 360 | K128: 0.002777777778 | L128: 0.00150056897 | M128: 0.0012 | N128: 0.00270056897 | O128: 0.000750158 | P128: 0.014253002 | Q128: 0 | R128: 0 | S128: 0 | T128: 0.00270056897
G129: 2014-05-19 | H129: 2014-05-20 | I129: 1 | J129: 360 | K129: 0.002777777778 | L129: 0.00150056897 | M129: 0.0012 | N129: 0.00270056897 | O129: 0.000750158 | P129: 0.01500316 | Q129: 0 | R129: 0 | S129: 0 | T129: 0.00270056897
G130: 2014-05-20 | H130: 2014-05-21 | I130: 1 | J130: 360 | K130: 0.002777777778 | L130: 0.00150056897 | M130: 0.0012 | N130: 0.00270056897 | O130: 0.000750158 | P130: 0.015753318 | Q130: 0 | R130: 0 | S130: 0 | T130: 0.00270056897
G131: 2014-05-21 | H131: 2014-05-22 | I131: 1 | J131: 360 | K131: 0.002777777778 | L131: 0.00150056897 | M131: 0.0012 | N131: 0.00270056897 | O131: 0.000750158 | P131: 0.016503476 | Q131: 0 | R131: 0 | S131: 0 | T131: 0.00270056897
G132: 2014-05-22 | H132: 2014-05-23 | I132: 1 | J132: 360 | K132: 0.002777777778 | L132: 0.00150056897 | M132: 0.0012 | N132: 0.00270056897 | O132: 0.000750158 | P132: 0.017253634 | Q132: 0 | R132: 0 | S132: 0 | T132: 0.00270056897
G133: 2014-05-23 | H133: 2014-05-24 | I133: 1 | J133: 360 | K133: 0.002777777778 | L133: 0.00150056897 | M133: 0.0012 | N133: 0.00270056897 | O133: 0.000750158 | P133: 0.018003792 | Q133: 0 | R133: 0 | S133: 0 | T133: 0.00270056897
G134: 2014-05-24 | H134: 2014-05-25 | I134: 1 | J134: 360 | K134: 0.002777777778 | L134: 0.00150056897 | M134: 0.0012 | N134: 0.00270056897 | O134: 0.000750158 | P134: 0.01875395 | Q134: 0 | R134: 0 | S134: 0 | T134: 0.00270056897
G135: 2014-05-25 | H135: 2014-05-26 | I135: 1 | J135: 360 | K135: 0.002777777778 | L135: 0.00150056897 | M135: 0.0012 | N135: 0.00270056897 | O135: 0.000750158 | P135: 0.019504108 | Q135: 0 | R135: 0 | S135: 0 | T135: 0.00270056897
G136: 2014-05-26 | H136: 2014-05-27 | I136: 1 | J136: 360 | K136: 0.002777777778 | L136: 0.00150056897 | M136: 0.0012 | N136: 0.00270056897 | O136: 0.000750158 | P136: 0.020254266 | Q136: 0 | R136: 0 | S136: 0 | T136: 0.00270056897
G137: 2014-05-27 | H137: 2014-05-28 | I137: 1 | J137: 360 | K137: 0.002777777778 | L137: 0.00150056897 | M137: 0.0012 | N137: 0.00270056897 | O137: 0.000750158 | P137: 0.021004424 | Q137: 0 | R137: 0 | S137: 0 | T137: 0.00270056897
G138: 2014-05-28 | H138: 2014-05-29 | I138: 1 | J138: 360 | K138: 0.002777777778 | L138: 0.00150056897 | M138: 0.0012 | N138: 0.00270056897 | O138: 0.000750158 | P138: 0.021754582 | Q138: 0 | R138: 0 | S138: 0 | T138: 0.00270056897
G139: 2014-05-29 | H139: 2014-05-30 | I139: 1 | J139: 360 | K139: 0.002777777778 | L139: 0.00150056897 | M139: 0.0012 | N139: 0.00270056897 | O139: 0.000750158 | P139: 0.02250474 | Q139: 0 | R139: 0 | S139: 0 | T139: 0.00270056897
G140: 2014-05-30 | H140: 2014-05-31 | I140: 1 | J140: 360 | K140: 0.002777777778 | L140: 0.00150056897 | M140: 0.0012 | N140: 0.00270056897 | O140: 0.000750158 | P140: 0.023254898 | Q140: 0 | R140: 0 | S140: 0 | T140: 0.00270056897
G141: 2014-05-31 | H141: 2014-06-01 | I141: 1 | J141: 360 | K141: 0.002777777778 | L141: 0.00150056897 | M141: 0.0012 | N141: 0.00270056897 | O141: 0.000750158 | P141: 0.024005056 | Q141: 0 | R141: 0 | S141: 0 | T141: 0.00270056897
G142: 2014-06-01 | H142: 2014-06-02 | I142: 1 | J142: 360 | K142: 0.002777777778 | L142: 0.00150056897 | M142: 0.0012 | N142: 0.00270056897 | O142: 0.000750158 | P142: 0.024755214 | Q142: 0 | R142: 0 | S142: 0 | T142: 0.00270056897
G143: 2014-06-02 | H143: 2014-06-03 | I143: 1 | J143: 360 | K143: 0.002777777778 | L143: 0.00150056897 | M143: 0.0012 | N143: 0.00270056897 | O143: 0.000750158 | P143: 0.025505372 | Q143: 0 | R143: 0 | S143: 0 | T143: 0.00270056897
G144: 2014-06-03 | H144: 2014-06-04 | I144: 1 | J144: 360 | K144: 0.002777777778 | L144: 0.00150056897 | M144: 0.0012 | N144: 0.00270056897 | O144: 0.000750158 | P144: 0.02625553 | Q144: 0 | R144: 0 | S144: 0 | T144: 0.00270056897
G145: 2014-06-04 | H145: 2014-06-05 | I145: 1 | J145: 360 | K145: 0.002777777778 | L145: 0.00150056897 | M145: 0.0012 | N145: 0.00270056897 | O145: 0.000750158 | P145: 0.027005688 | Q145: 0 | R145: 0 | S145: 0 | T145: 0.00270056897
G146: 2014-06-05 | H146: 2014-06-06 | I146: 1 | J146: 360 | K146: 0.002777777778 | L146: 0.00150056897 | M146: 0.0012 | N146: 0.00270056897 | O146: 0.000750158 | P146: 0.027755846 | Q146: 0 | R146: 0 | S146: 0 | T146: 0.00270056897
G147: 2014-06-06 | H147: 2014-06-07 | I147: 1 | J147: 360 | K147: 0.002777777778 | L147: 0.00150056897 | M147: 0.0012 | N147: 0.00270056897 | O147: 0.000750158 | P147: 0.028506004 | Q147: 0 | R147: 0 | S147: 0 | T147: 0.00270056897
G148: 2014-06-07 | H148: 2014-06-08 | I148: 1 | J148: 360 | K148: 0.002777777778 | L148: 0.00150056897 | M148: 0.0012 | N148: 0.00270056897 | O148: 0.000750158 | P148: 0.029256162 | Q148: 0 | R148: 0 | S148: 0 | T148: 0.00270056897
G149: 2014-06-08 | H149: 2014-06-09 | I149: 1 | J149: 360 | K149: 0.002777777778 | L149: 0.00150056897 | M149: =+$C$11 -> 0.0012 | N149: 0.00270056897 | O149: 0.000750158 | P149: 0.03000632 | Q149: 0 | R149: 0 | S149: 0 | T149: 0.00270056897
G150: 2014-06-09 | H150: =+G150+1 -> 2014-06-10 | I150: =+H150-G150 -> 1 | J150: 360 | K150: =I150/J150 -> 0.002777777778 | L150: 0.00150056897 | M150: 0.0012 | N150: =MAX(0,M150+L150) -> 0.00270056897 | O150: =ROUND(N150*$C$10*K150,9) -> 0.000750158 | P150: 0.030756478 | Q150: 0 | R150: 0 | S150: =+R150+Q150 -> 0 | T150: =L150+$C$13 -> 0.00270056897
G151: =+H150 -> 2014-06-10 | H151: 2014-06-11 | I151: 1 | J151: 360 | K151: 0.002777777778 | L151: =L150 -> 0.00150056897 | M151: 0.0012 | N151: 0.00270056897 | O151: 0.000750158 | P151: =+P150+O151-Q150 -> 0.031506636 | Q151: 0 | R151: 0 | S151: 0 | T151: 0.00270056897
G152: 2014-06-11 | H152: 2014-06-12 | I152: 1 | J152: 360 | K152: 0.002777777778 | L152: 0.00150056897 | M152: 0.0012 | N152: 0.00270056897 | O152: 0.000750158 | P152: 0.032256794 | Q152: 0 | R152: 0 | S152: 0 | T152: 0.00270056897
G153: 2014-06-12 | H153: 2014-06-13 | I153: 1 | J153: 360 | K153: 0.002777777778 | L153: 0.00150056897 | M153: 0.0012 | N153: 0.00270056897 | O153: 0.000750158 | P153: 0.033006952 | Q153: 0 | R153: 0 | S153: 0 | T153: 0.00270056897
G154: 2014-06-13 | H154: 2014-06-14 | I154: 1 | J154: 360 | K154: 0.002777777778 | L154: 0.00150056897 | M154: 0.0012 | N154: 0.00270056897 | O154: 0.000750158 | P154: 0.03375711 | Q154: 0 | R154: 0 | S154: 0 | T154: 0.00270056897
G155: 2014-06-14 | H155: 2014-06-15 | I155: 1 | J155: 360 | K155: 0.002777777778 | L155: 0.00150056897 | M155: 0.0012 | N155: 0.00270056897 | O155: 0.000750158 | P155: 0.034507268 | Q155: 0 | R155: 0 | S155: 0 | T155: 0.00270056897
G156: 2014-06-15 | H156: 2014-06-16 | I156: 1 | J156: 360 | K156: 0.002777777778 | L156: 0.00150056897 | M156: 0.0012 | N156: 0.00270056897 | O156: 0.000750158 | P156: 0.035257426 | Q156: 0 | R156: 0 | S156: 0 | T156: 0.00270056897
G157: 2014-06-16 | H157: 2014-06-17 | I157: 1 | J157: 360 | K157: 0.002777777778 | L157: 0.00150056897 | M157: 0.0012 | N157: 0.00270056897 | O157: 0.000750158 | P157: 0.036007584 | Q157: 0 | R157: 0 | S157: 0 | T157: 0.00270056897
G158: 2014-06-17 | H158: 2014-06-18 | I158: 1 | J158: 360 | K158: 0.002777777778 | L158: 0.00150056897 | M158: 0.0012 | N158: 0.00270056897 | O158: 0.000750158 | P158: 0.036757742 | Q158: 0 | R158: 0 | S158: 0 | T158: 0.00270056897
G159: 2014-06-18 | H159: 2014-06-19 | I159: 1 | J159: 360 | K159: 0.002777777778 | L159: 0.00150056897 | M159: 0.0012 | N159: 0.00270056897 | O159: 0.000750158 | P159: 0.0375079 | Q159: 0 | R159: 0 | S159: 0 | T159: 0.00270056897
G160: 2014-06-19 | H160: 2014-06-20 | I160: 1 | J160: 360 | K160: 0.002777777778 | L160: 0.00150056897 | M160: 0.0012 | N160: 0.00270056897 | O160: 0.000750158 | P160: 0.038258058 | Q160: 0 | R160: 0 | S160: 0 | T160: 0.00270056897
G161: 2014-06-20 | H161: 2014-06-21 | I161: 1 | J161: 360 | K161: 0.002777777778 | L161: 0.00150056897 | M161: 0.0012 | N161: 0.00270056897 | O161: 0.000750158 | P161: 0.039008216 | Q161: 0 | R161: 0 | S161: 0 | T161: 0.00270056897
G162: 2014-06-21 | H162: 2014-06-22 | I162: 1 | J162: 360 | K162: 0.002777777778 | L162: 0.00150056897 | M162: 0.0012 | N162: 0.00270056897 | O162: 0.000750158 | P162: 0.039758374 | Q162: 0 | R162: 0 | S162: 0 | T162: 0.00270056897
G163: 2014-06-22 | H163: 2014-06-23 | I163: 1 | J163: 360 | K163: 0.002777777778 | L163: 0.00150056897 | M163: 0.0012 | N163: 0.00270056897 | O163: 0.000750158 | P163: 0.040508532 | Q163: 0 | R163: 0 | S163: 0 | T163: 0.00270056897
G164: 2014-06-23 | H164: 2014-06-24 | I164: 1 | J164: 360 | K164: 0.002777777778 | L164: 0.00150056897 | M164: 0.0012 | N164: 0.00270056897 | O164: 0.000750158 | P164: 0.04125869 | Q164: 0 | R164: 0 | S164: 0 | T164: 0.00270056897
G165: 2014-06-24 | H165: 2014-06-25 | I165: 1 | J165: 360 | K165: 0.002777777778 | L165: 0.00150056897 | M165: 0.0012 | N165: 0.00270056897 | O165: 0.000750158 | P165: 0.042008848 | Q165: 0 | R165: 0 | S165: 0 | T165: 0.00270056897
G166: 2014-06-25 | H166: 2014-06-26 | I166: 1 | J166: 360 | K166: 0.002777777778 | L166: 0.00150056897 | M166: 0.0012 | N166: 0.00270056897 | O166: 0.000750158 | P166: 0.042759006 | Q166: 0 | R166: 0 | S166: 0 | T166: 0.00270056897
G167: 2014-06-26 | H167: 2014-06-27 | I167: 1 | J167: 360 | K167: 0.002777777778 | L167: 0.00150056897 | M167: 0.0012 | N167: 0.00270056897 | O167: 0.000750158 | P167: 0.043509164 | Q167: 0 | R167: 0 | S167: 0 | T167: 0.00270056897
G168: 2014-06-27 | H168: 2014-06-28 | I168: 1 | J168: 360 | K168: 0.002777777778 | L168: 0.00150056897 | M168: 0.0012 | N168: 0.00270056897 | O168: 0.000750158 | P168: 0.044259322 | Q168: 0 | R168: 0 | S168: 0 | T168: 0.00270056897
G169: 2014-06-28 | H169: 2014-06-29 | I169: 1 | J169: 360 | K169: 0.002777777778 | L169: 0.00150056897 | M169: 0.0012 | N169: 0.00270056897 | O169: 0.000750158 | P169: 0.04500948 | Q169: 0 | R169: 0 | S169: 0 | T169: 0.00270056897
G170: 2014-06-29 | H170: 2014-06-30 | I170: 1 | J170: 360 | K170: 0.002777777778 | L170: 0.00150056897 | M170: 0.0012 | N170: 0.00270056897 | O170: 0.000750158 | P170: 0.045759638 | Q170: 0 | R170: 0 | S170: 0 | T170: 0.00270056897
G171: 2014-06-30 | H171: 2014-07-01 | I171: 1 | J171: 360 | K171: 0.002777777778 | L171: 0.00150056897 | M171: 0.0012 | N171: 0.00270056897 | O171: 0.000750158 | P171: 0.046509796 | Q171: 0 | R171: 0 | S171: 0 | T171: 0.00270056897
G172: 2014-07-01 | H172: 2014-07-02 | I172: 1 | J172: 360 | K172: 0.002777777778 | L172: 0.00150056897 | M172: 0.0012 | N172: 0.00270056897 | O172: 0.000750158 | P172: 0.047259954 | Q172: 0 | R172: 0 | S172: 0 | T172: 0.00270056897
G173: 2014-07-02 | H173: 2014-07-03 | I173: 1 | J173: 360 | K173: 0.002777777778 | L173: 0.00150056897 | M173: 0.0012 | N173: 0.00270056897 | O173: 0.000750158 | P173: 0.048010112 | Q173: 0 | R173: 0 | S173: 0 | T173: 0.00270056897
G174: 2014-07-03 | H174: 2014-07-04 | I174: 1 | J174: 360 | K174: 0.002777777778 | L174: 0.00150056897 | M174: 0.0012 | N174: 0.00270056897 | O174: 0.000750158 | P174: 0.04876027 | Q174: 0 | R174: 0 | S174: 0 | T174: 0.00270056897
G175: 2014-07-04 | H175: 2014-07-05 | I175: 1 | J175: 360 | K175: 0.002777777778 | L175: 0.00150056897 | M175: 0.0012 | N175: 0.00270056897 | O175: 0.000750158 | P175: 0.049510428 | Q175: 0 | R175: 0 | S175: 0 | T175: 0.00270056897
G176: 2014-07-05 | H176: 2014-07-06 | I176: 1 | J176: 360 | K176: 0.002777777778 | L176: 0.00150056897 | M176: 0.0012 | N176: 0.00270056897 | O176: 0.000750158 | P176: 0.050260586 | Q176: 0 | R176: 0 | S176: 0 | T176: 0.00270056897
G177: 2014-07-06 | H177: 2014-07-07 | I177: 1 | J177: 360 | K177: 0.002777777778 | L177: 0.00150056897 | M177: 0.0012 | N177: 0.00270056897 | O177: 0.000750158 | P177: 0.051010744 | Q177: 0 | R177: 0 | S177: 0 | T177: 0.00270056897
G178: 2014-07-07 | H178: 2014-07-08 | I178: 1 | J178: 360 | K178: 0.002777777778 | L178: 0.00150056897 | M178: 0.0012 | N178: 0.00270056897 | O178: 0.000750158 | P178: 0.051760902 | Q178: 0 | R178: 0 | S178: 0 | T178: 0.00270056897
G179: 2014-07-08 | H179: 2014-07-09 | I179: 1 | J179: 360 | K179: 0.002777777778 | L179: 0.00150056897 | M179: 0.0012 | N179: 0.00270056897 | O179: 0.000750158 | P179: 0.05251106 | Q179: 0 | R179: 0 | S179: 0 | T179: 0.00270056897
G180: 2014-07-09 | H180: 2014-07-10 | I180: 1 | J180: 360 | K180: 0.002777777778 | L180: 0.00150056897 | M180: 0.0012 | N180: 0.00270056897 | O180: 0.000750158 | P180: 0.053261218 | Q180: 0 | R180: 0 | S180: 0 | T180: 0.00270056897
G181: 2014-07-10 | H181: 2014-07-11 | I181: 1 | J181: 360 | K181: 0.002777777778 | L181: 0.00150056897 | M181: 0.0012 | N181: 0.00270056897 | O181: 0.000750158 | P181: 0.054011376 | Q181: 0 | R181: 0 | S181: 0 | T181: 0.00270056897
G182: 2014-07-11 | H182: 2014-07-12 | I182: 1 | J182: 360 | K182: 0.002777777778 | L182: 0.00150056897 | M182: 0.0012 | N182: 0.00270056897 | O182: 0.000750158 | P182: 0.054761534 | Q182: 0 | R182: 0 | S182: 0 | T182: 0.00270056897
G183: 2014-07-12 | H183: 2014-07-13 | I183: 1 | J183: 360 | K183: 0.002777777778 | L183: 0.00150056897 | M183: 0.0012 | N183: 0.00270056897 | O183: 0.000750158 | P183: 0.055511692 | Q183: 0 | R183: 0 | S183: 0 | T183: 0.00270056897
G184: 2014-07-13 | H184: 2014-07-14 | I184: 1 | J184: 360 | K184: 0.002777777778 | L184: 0.00150056897 | M184: 0.0012 | N184: 0.00270056897 | O184: 0.000750158 | P184: 0.05626185 | Q184: 0 | R184: 0 | S184: 0 | T184: 0.00270056897
G185: 2014-07-14 | H185: 2014-07-15 | I185: 1 | J185: 360 | K185: 0.002777777778 | L185: 0.00150056897 | M185: 0.0012 | N185: 0.00270056897 | O185: 0.000750158 | P185: 0.057012008 | Q185: 0 | R185: 0 | S185: 0 | T185: 0.00270056897
G186: 2014-07-15 | H186: 2014-07-16 | I186: 1 | J186: 360 | K186: 0.002777777778 | L186: 0.00150056897 | M186: 0.0012 | N186: 0.00270056897 | O186: 0.000750158 | P186: 0.057762166 | Q186: 0 | R186: 0 | S186: 0 | T186: 0.00270056897
G187: 2014-07-16 | H187: 2014-07-17 | I187: 1 | J187: 360 | K187: 0.002777777778 | L187: 0.00150056897 | M187: 0.0012 | N187: 0.00270056897 | O187: 0.000750158 | P187: 0.058512324 | Q187: 0 | R187: 0 | S187: 0 | T187: 0.00270056897
G188: 2014-07-17 | H188: 2014-07-18 | I188: 1 | J188: 360 | K188: 0.002777777778 | L188: 0.00150056897 | M188: 0.0012 | N188: 0.00270056897 | O188: 0.000750158 | P188: 0.059262482 | Q188: 0 | R188: 0 | S188: 0 | T188: 0.00270056897
G189: 2014-07-18 | H189: 2014-07-19 | I189: 1 | J189: 360 | K189: 0.002777777778 | L189: 0.00150056897 | M189: 0.0012 | N189: 0.00270056897 | O189: 0.000750158 | P189: 0.06001264 | Q189: 0 | R189: 0 | S189: 0 | T189: 0.00270056897
G190: 2014-07-19 | H190: 2014-07-20 | I190: 1 | J190: 360 | K190: 0.002777777778 | L190: 0.00150056897 | M190: 0.0012 | N190: 0.00270056897 | O190: 0.000750158 | P190: 0.060762798 | Q190: 0 | R190: 0 | S190: 0 | T190: 0.00270056897
G191: 2014-07-20 | H191: 2014-07-21 | I191: 1 | J191: 360 | K191: 0.002777777778 | L191: 0.00150056897 | M191: 0.0012 | N191: 0.00270056897 | O191: 0.000750158 | P191: 0.061512956 | Q191: 0 | R191: 0 | S191: 0 | T191: 0.00270056897
G192: 2014-07-21 | H192: 2014-07-22 | I192: 1 | J192: 360 | K192: 0.002777777778 | L192: 0.00150056897 | M192: 0.0012 | N192: 0.00270056897 | O192: 0.000750158 | P192: 0.062263114 | Q192: 0 | R192: 0 | S192: 0 | T192: 0.00270056897
G193: 2014-07-22 | H193: 2014-07-23 | I193: 1 | J193: 360 | K193: 0.002777777778 | L193: 0.00150056897 | M193: 0.0012 | N193: 0.00270056897 | O193: 0.000750158 | P193: 0.063013272 | Q193: 0 | R193: 0 | S193: 0 | T193: 0.00270056897
G194: 2014-07-23 | H194: 2014-07-24 | I194: 1 | J194: 360 | K194: 0.002777777778 | L194: 0.00150056897 | M194: 0.0012 | N194: 0.00270056897 | O194: 0.000750158 | P194: 0.06376343 | Q194: 0 | R194: 0 | S194: 0 | T194: 0.00270056897
G195: 2014-07-24 | H195: 2014-07-25 | I195: 1 | J195: 360 | K195: 0.002777777778 | L195: 0.00150056897 | M195: 0.0012 | N195: 0.00270056897 | O195: 0.000750158 | P195: 0.064513588 | Q195: 0 | R195: 0 | S195: 0 | T195: 0.00270056897
G196: 2014-07-25 | H196: 2014-07-26 | I196: 1 | J196: 360 | K196: 0.002777777778 | L196: 0.00150056897 | M196: 0.0012 | N196: 0.00270056897 | O196: 0.000750158 | P196: 0.065263746 | Q196: 0 | R196: 0 | S196: 0 | T196: 0.00270056897
G197: 2014-07-26 | H197: 2014-07-27 | I197: 1 | J197: 360 | K197: 0.002777777778 | L197: 0.00150056897 | M197: 0.0012 | N197: 0.00270056897 | O197: 0.000750158 | P197: 0.066013904 | Q197: 0 | R197: 0 | S197: 0 | T197: 0.00270056897
G198: 2014-07-27 | H198: 2014-07-28 | I198: 1 | J198: 360 | K198: 0.002777777778 | L198: 0.00150056897 | M198: 0.0012 | N198: 0.00270056897 | O198: 0.000750158 | P198: 0.066764062 | Q198: 0 | R198: 0 | S198: 0 | T198: 0.00270056897
G199: 2014-07-28 | H199: 2014-07-29 | I199: 1 | J199: 360 | K199: 0.002777777778 | L199: 0.00150056897 | M199: 0.0012 | N199: 0.00270056897 | O199: 0.000750158 | P199: 0.06751422 | Q199: 0 | R199: 0 | S199: 0 | T199: 0.00270056897
G200: 2014-07-29 | H200: 2014-07-30 | I200: 1 | J200: 360 | K200: 0.002777777778 | L200: 0.00150056897 | M200: 0.0012 | N200: 0.00270056897 | O200: 0.000750158 | P200: 0.068264378 | Q200: 0 | R200: 0 | S200: 0 | T200: 0.00270056897
G201: 2014-07-30 | H201: 2014-07-31 | I201: 1 | J201: 360 | K201: 0.002777777778 | L201: 0.00150056897 | M201: 0.0012 | N201: 0.00270056897 | O201: 0.000750158 | P201: 0.069014536 | Q201: =P201 -> 0.069014536 | R201: 0 | S201: 0.069014536 | T201: 0.00270056897 | U201: =ROUND((1+AVERAGE(T110:T201)*SUM(K110:K201)),9) -> 1.000690145 | V201: =ROUND(U201*U109,9) -> 1.001358247 | W201: =ROUND(S201/V201,9) -> 0.068920924
G202: 2014-07-31 | H202: 2014-08-01 | I202: 1 | J202: 360 | K202: 0.002777777778 | L202: 0.00150056897 | M202: 0.0012 | N202: 0.00270056897 | O202: 0.000750158 | P202: 0.000750158 | Q202: 0 | R202: 0 | S202: 0 | T202: 0.00270056897
G203: 2014-08-01 | H203: 2014-08-02 | I203: 1 | J203: 360 | K203: 0.002777777778 | L203: 0.00150056897 | M203: 0.0012 | N203: 0.00270056897 | O203: 0.000750158 | P203: 0.001500316 | Q203: 0 | R203: 0 | S203: 0 | T203: 0.00270056897
G204: 2014-08-02 | H204: 2014-08-03 | I204: 1 | J204: 360 | K204: 0.002777777778 | L204: 0.00150056897 | M204: 0.0012 | N204: 0.00270056897 | O204: 0.000750158 | P204: 0.002250474 | Q204: 0 | R204: 0 | S204: 0 | T204: 0.00270056897
G205: 2014-08-03 | H205: 2014-08-04 | I205: 1 | J205: 360 | K205: 0.002777777778 | L205: 0.00150056897 | M205: 0.0012 | N205: 0.00270056897 | O205: 0.000750158 | P205: 0.003000632 | Q205: 0 | R205: 0 | S205: 0 | T205: 0.00270056897
... 545 more rows

Sheet DM CALC ex BILLS FEB
B3: Trade Date | C3: 2014-02-27
B4: Settle Date | C4: 2014-02-28 | H4: Principal | I4: =+I6-I5 -> 99.99978235 | K4: NOTES:
H5: Accrued Interest | I5: =P48 -> 0.060450251 | K5: This example takes place at a reopening auction.
B6: Interest Accrual/Last Cpn | C6: 2014-01-31 | E6: Coupon Pmts | H6: Total Money | I6: =+W18 -> 100.0602326 | K6: Assume you only have information as of the auction date of 2/28/2014
B7: Next Coupon | C7: =EOMONTH(C6,3) -> 2014-04-30 | E7: =+C7 -> 2014-04-30 | K7: You may change Spread (cell C11) and Discount Margin (cell C13) and the spreadsheet will still calculate accurately.
B8: Maturity | C8: =EOMONTH(C6,24) -> 2016-01-31 | E8: =+EOMONTH(E7,3) -> 2014-07-31 | H8: Clean Price | I8: =100*I4/C10 -> 99.99978235 | K8: Auction High Rates provided are purely for illustrative purposes and do not reflect historical or predicted 13-week Bill auction results
E9: =+EOMONTH(E8,3) -> 2014-10-31 | K9: As this is a reopening auction, in the actual auction, the Spread (cell C11) would be a fixed rate from the Original Issue auction, and
B10: Face Amount | C10: 100 | E10: 2015-01-31 | K10: participants would bid on Discount Margin (Cell C13)
B11: Spread | C11: 0.0012 | E11: 2015-04-30 | K11: Market participants are strongly advised to utilize the daily interest accrual rates that will be published on Treasury Direct when calculating
E12: 2015-07-31 | K12: coupon payments
B13: Discount Margin | C13: 0.0012 | E13: 2015-10-31
E14: 2016-01-31
P18: TOTALS | Q18: =SUM(Q21:Q1152) -> 4.214267087 | R18: =SUM(R21:R1152) -> 100 | S18: =SUM(S21:S1152) -> 104.2142671 | W18: =SUM(W21:W1152) -> 100.0602326
A19: 13-Week Bill Information
A20: Auction Date | B20: Issue Date | C20: Maturity Dt | D20: Auction High Rate | E20: Auction Clearing Price | G20: Accrual Start | H20: Accrual End | I20: # of Days | J20: Denominator | K20: Time | L20: Index Rate | M20: Spread | N20: Interest Rate | O20: Daily Interest | P20: Accrued Interest (no present value applied) | Q20: Coupon Payment | R20: Principal Payment | S20: Total Cash Flow | T20: Discount Rate (Index Rate + Discount Margin) | U20: Compound Factor, Ti | V20: Compound Factor, T1 to Ti | W20: Present Value of Total Cash Flow
A21: 2014-01-06 | B21: 2014-01-09 | C21: =+B21+13*7 -> 2014-04-10 | D21: 0.00095 | E21: =PRICEDISC(B21,C21,D21,100,2) -> 99.97598611 | G21: 2014-01-31 | H21: =+G21+1 -> 2014-02-01 | I21: =+H21-G21 -> 1 | J21: 360 | K21: =I21/J21 -> 0.002777777778 | L21: =ROUND(360/(INDEX($C$21:$C$32,MATCH(G21-1,$A$21:$A$32,1))-INDEX($B$21:$B$32,MATCH(G21-1,$A$21:$A$32,1)))*((100/INDEX($E$21:$E$32,MATCH(G21-1,$A$21:$A$32,1)))-1),11) -> 0.00150056897 | M21: =+$C$11 -> 0.0012 | N21: =MAX(0,M21+L21) -> 0.00270056897 | O21: =ROUND(N21*$C$10*K21,9) -> 0.000750158 | P21: =+O21 -> 0.000750158 | Q21: 0 | R21: 0 | S21: =+R21+Q21 -> 0 | T21: =L21+$C$13 -> 0.00270056897
A22: 2014-01-13 | B22: 2014-01-16 | C22: =+B22+13*7 -> 2014-04-17 | D22: 0.0011 | E22: =PRICEDISC(B22,C22,D22,100,2) -> 99.97219444 | G22: =+H21 -> 2014-02-01 | H22: =+G22+1 -> 2014-02-02 | I22: =+H22-G22 -> 1 | J22: 360 | K22: =I22/J22 -> 0.002777777778 | L22: =ROUND(360/(INDEX($C$21:$C$32,MATCH(G22-1,$A$21:$A$32,1))-INDEX($B$21:$B$32,MATCH(G22-1,$A$21:$A$32,1)))*((100/INDEX($E$21:$E$32,MATCH(G22-1,$A$21:$A$32,1)))-1),11) -> 0.00150056897 | M22: 0.0012 | N22: =MAX(0,M22+L22) -> 0.00270056897 | O22: =ROUND(N22*$C$10*K22,9) -> 0.000750158 | P22: =+P21+O22-Q21 -> 0.001500316 | Q22: 0 | R22: 0 | S22: =+R22+Q22 -> 0 | T22: =L22+$C$13 -> 0.00270056897
A23: 2014-01-21 | B23: 2014-01-23 | C23: 2014-04-24 | D23: 0.0013 | E23: 99.96713889 | G23: =+H22 -> 2014-02-02 | H23: 2014-02-03 | I23: 1 | J23: 360 | K23: 0.002777777778 | L23: 0.00150056897 | M23: 0.0012 | N23: 0.00270056897 | O23: 0.000750158 | P23: =+P22+O23-Q22 -> 0.002250474 | Q23: 0 | R23: 0 | S23: 0 | T23: 0.00270056897
A24: 2014-01-27 | B24: 2014-01-30 | C24: 2014-05-01 | D24: 0.0015 | E24: 99.96208333 | G24: 2014-02-03 | H24: 2014-02-04 | I24: 1 | J24: 360 | K24: 0.002777777778 | L24: 0.00150056897 | M24: 0.0012 | N24: 0.00270056897 | O24: 0.000750158 | P24: 0.003000632 | Q24: 0 | R24: 0 | S24: 0 | T24: 0.00270056897
A25: 2014-02-03 | B25: 2014-02-06 | C25: 2014-05-08 | D25: 0.0025 | E25: 99.93680556 | G25: 2014-02-04 | H25: 2014-02-05 | I25: 1 | J25: 360 | K25: 0.002777777778 | L25: 0.00250158086 | M25: 0.0012 | N25: 0.00370158086 | O25: 0.001028217 | P25: 0.004028849 | Q25: 0 | R25: 0 | S25: 0 | T25: 0.00370158086
A26: 2014-02-10 | B26: 2014-02-13 | C26: 2014-05-15 | D26: 0.005 | E26: 99.87361111 | G26: 2014-02-05 | H26: 2014-02-06 | I26: 1 | J26: 360 | K26: 0.002777777778 | L26: 0.00250158086 | M26: 0.0012 | N26: 0.00370158086 | O26: 0.001028217 | P26: 0.005057066 | Q26: 0 | R26: 0 | S26: 0 | T26: 0.00370158086
A27: 2014-02-18 | B27: 2014-02-20 | C27: 2014-05-22 | D27: 0.01 | E27: 99.74722222 | G27: 2014-02-06 | H27: 2014-02-07 | I27: 1 | J27: 360 | K27: 0.002777777778 | L27: 0.00250158086 | M27: 0.0012 | N27: 0.00370158086 | O27: 0.001028217 | P27: 0.006085283 | Q27: 0 | R27: 0 | S27: 0 | T27: 0.00370158086
A28: 2014-02-24 | B28: 2014-02-27 | C28: 2014-05-29 | D28: 0.02 | E28: 99.49444444 | G28: 2014-02-07 | H28: 2014-02-08 | I28: 1 | J28: 360 | K28: 0.002777777778 | L28: 0.00250158086 | M28: 0.0012 | N28: 0.00370158086 | O28: 0.001028217 | P28: 0.0071135 | Q28: 0 | R28: 0 | S28: 0 | T28: 0.00370158086
G29: 2014-02-08 | H29: 2014-02-09 | I29: 1 | J29: 360 | K29: 0.002777777778 | L29: 0.00250158086 | M29: 0.0012 | N29: 0.00370158086 | O29: 0.001028217 | P29: 0.008141717 | Q29: 0 | R29: 0 | S29: 0 | T29: 0.00370158086
G30: 2014-02-09 | H30: 2014-02-10 | I30: 1 | J30: 360 | K30: 0.002777777778 | L30: 0.00250158086 | M30: 0.0012 | N30: 0.00370158086 | O30: 0.001028217 | P30: 0.009169934 | Q30: 0 | R30: 0 | S30: 0 | T30: 0.00370158086
G31: 2014-02-10 | H31: 2014-02-11 | I31: 1 | J31: 360 | K31: 0.002777777778 | L31: 0.00250158086 | M31: 0.0012 | N31: 0.00370158086 | O31: 0.001028217 | P31: 0.010198151 | Q31: 0 | R31: 0 | S31: 0 | T31: 0.00370158086
G32: 2014-02-11 | H32: 2014-02-12 | I32: 1 | J32: 360 | K32: 0.002777777778 | L32: 0.00500632744 | M32: 0.0012 | N32: 0.00620632744 | O32: 0.00172398 | P32: 0.011922131 | Q32: 0 | R32: 0 | S32: 0 | T32: 0.00620632744
G33: 2014-02-12 | H33: 2014-02-13 | I33: 1 | J33: 360 | K33: 0.002777777778 | L33: 0.00500632744 | M33: 0.0012 | N33: 0.00620632744 | O33: 0.00172398 | P33: 0.013646111 | Q33: 0 | R33: 0 | S33: 0 | T33: 0.00620632744
G34: 2014-02-13 | H34: 2014-02-14 | I34: 1 | J34: 360 | K34: 0.002777777778 | L34: 0.00500632744 | M34: 0.0012 | N34: 0.00620632744 | O34: 0.00172398 | P34: 0.015370091 | Q34: 0 | R34: 0 | S34: 0 | T34: 0.00620632744
G35: 2014-02-14 | H35: 2014-02-15 | I35: 1 | J35: 360 | K35: 0.002777777778 | L35: 0.00500632744 | M35: 0.0012 | N35: 0.00620632744 | O35: 0.00172398 | P35: 0.017094071 | Q35: 0 | R35: 0 | S35: 0 | T35: 0.00620632744
G36: 2014-02-15 | H36: 2014-02-16 | I36: 1 | J36: 360 | K36: 0.002777777778 | L36: 0.00500632744 | M36: 0.0012 | N36: 0.00620632744 | O36: 0.00172398 | P36: 0.018818051 | Q36: 0 | R36: 0 | S36: 0 | T36: 0.00620632744
G37: 2014-02-16 | H37: 2014-02-17 | I37: 1 | J37: 360 | K37: 0.002777777778 | L37: 0.00500632744 | M37: 0.0012 | N37: 0.00620632744 | O37: 0.00172398 | P37: 0.020542031 | Q37: 0 | R37: 0 | S37: 0 | T37: 0.00620632744
G38: 2014-02-17 | H38: 2014-02-18 | I38: 1 | J38: 360 | K38: 0.002777777778 | L38: 0.00500632744 | M38: 0.0012 | N38: 0.00620632744 | O38: 0.00172398 | P38: 0.022266011 | Q38: 0 | R38: 0 | S38: 0 | T38: 0.00620632744
G39: 2014-02-18 | H39: 2014-02-19 | I39: 1 | J39: 360 | K39: 0.002777777778 | L39: 0.00500632744 | M39: 0.0012 | N39: 0.00620632744 | O39: 0.00172398 | P39: 0.023989991 | Q39: 0 | R39: 0 | S39: 0 | T39: 0.00620632744
G40: 2014-02-19 | H40: 2014-02-20 | I40: 1 | J40: 360 | K40: 0.002777777778 | L40: 0.01002534184 | M40: 0.0012 | N40: 0.01122534184 | O40: 0.003118151 | P40: 0.027108142 | Q40: 0 | R40: 0 | S40: 0 | T40: 0.01122534184
G41: 2014-02-20 | H41: 2014-02-21 | I41: 1 | J41: 360 | K41: 0.002777777778 | L41: 0.01002534184 | M41: 0.0012 | N41: 0.01122534184 | O41: 0.003118151 | P41: 0.030226293 | Q41: 0 | R41: 0 | S41: 0 | T41: 0.01122534184
G42: 2014-02-21 | H42: 2014-02-22 | I42: 1 | J42: 360 | K42: 0.002777777778 | L42: 0.01002534184 | M42: 0.0012 | N42: 0.01122534184 | O42: 0.003118151 | P42: 0.033344444 | Q42: 0 | R42: 0 | S42: 0 | T42: 0.01122534184
G43: 2014-02-22 | H43: 2014-02-23 | I43: 1 | J43: 360 | K43: 0.002777777778 | L43: 0.01002534184 | M43: 0.0012 | N43: 0.01122534184 | O43: 0.003118151 | P43: 0.036462595 | Q43: 0 | R43: 0 | S43: 0 | T43: 0.01122534184
G44: 2014-02-23 | H44: 2014-02-24 | I44: 1 | J44: 360 | K44: 0.002777777778 | L44: 0.01002534184 | M44: 0.0012 | N44: 0.01122534184 | O44: 0.003118151 | P44: 0.039580746 | Q44: 0 | R44: 0 | S44: 0 | T44: 0.01122534184
G45: 2014-02-24 | H45: 2014-02-25 | I45: 1 | J45: 360 | K45: 0.002777777778 | L45: 0.01002534184 | M45: 0.0012 | N45: 0.01122534184 | O45: 0.003118151 | P45: 0.042698897 | Q45: 0 | R45: 0 | S45: 0 | T45: 0.01122534184
G46: 2014-02-25 | H46: 2014-02-26 | I46: 1 | J46: 360 | K46: 0.002777777778 | L46: 0.02010162488 | M46: 0.0012 | N46: 0.02130162488 | O46: 0.005917118 | P46: 0.048616015 | Q46: 0 | R46: 0 | S46: 0 | T46: 0.02130162488
G47: 2014-02-26 | H47: 2014-02-27 | I47: 1 | J47: 360 | K47: 0.002777777778 | L47: 0.02010162488 | M47: 0.0012 | N47: 0.02130162488 | O47: 0.005917118 | P47: 0.054533133 | Q47: 0 | R47: 0 | S47: 0 | T47: 0.02130162488
G48: 2014-02-27 | H48: 2014-02-28 | I48: 1 | J48: 360 | K48: 0.002777777778 | L48: 0.02010162488 | M48: 0.0012 | N48: 0.02130162488 | O48: 0.005917118 | P48: =+P47+O48-Q47 -> 0.060450251 | Q48: 0 | R48: 0 | S48: 0 | T48: 0.02130162488
G49: 2014-02-28 | H49: 2014-03-01 | I49: 1 | J49: 360 | K49: 0.002777777778 | L49: 0.02010162488 | M49: 0.0012 | N49: 0.02130162488 | O49: 0.005917118 | P49: 0.066367369 | Q49: 0 | R49: 0 | S49: 0 | T49: 0.02130162488
G50: 2014-03-01 | H50: 2014-03-02 | I50: 1 | J50: 360 | K50: 0.002777777778 | L50: 0.02010162488 | M50: 0.0012 | N50: 0.02130162488 | O50: 0.005917118 | P50: 0.072284487 | Q50: 0 | R50: 0 | S50: 0 | T50: 0.02130162488
G51: 2014-03-02 | H51: 2014-03-03 | I51: 1 | J51: 360 | K51: 0.002777777778 | L51: 0.02010162488 | M51: 0.0012 | N51: 0.02130162488 | O51: 0.005917118 | P51: 0.078201605 | Q51: 0 | R51: 0 | S51: 0 | T51: 0.02130162488
G52: 2014-03-03 | H52: 2014-03-04 | I52: 1 | J52: 360 | K52: 0.002777777778 | L52: 0.02010162488 | M52: 0.0012 | N52: 0.02130162488 | O52: 0.005917118 | P52: 0.084118723 | Q52: 0 | R52: 0 | S52: 0 | T52: 0.02130162488
G53: 2014-03-04 | H53: 2014-03-05 | I53: 1 | J53: 360 | K53: 0.002777777778 | L53: =L52 -> 0.02010162488 | M53: 0.0012 | N53: 0.02130162488 | O53: 0.005917118 | P53: 0.090035841 | Q53: 0 | R53: 0 | S53: 0 | T53: 0.02130162488
G54: 2014-03-05 | H54: 2014-03-06 | I54: 1 | J54: 360 | K54: 0.002777777778 | L54: =L53 -> 0.02010162488 | M54: 0.0012 | N54: 0.02130162488 | O54: 0.005917118 | P54: 0.095952959 | Q54: 0 | R54: 0 | S54: 0 | T54: 0.02130162488
G55: 2014-03-06 | H55: 2014-03-07 | I55: 1 | J55: 360 | K55: 0.002777777778 | L55: 0.02010162488 | M55: 0.0012 | N55: 0.02130162488 | O55: 0.005917118 | P55: 0.101870077 | Q55: 0 | R55: 0 | S55: 0 | T55: 0.02130162488
G56: 2014-03-07 | H56: 2014-03-08 | I56: 1 | J56: 360 | K56: 0.002777777778 | L56: 0.02010162488 | M56: 0.0012 | N56: 0.02130162488 | O56: 0.005917118 | P56: 0.107787195 | Q56: 0 | R56: 0 | S56: 0 | T56: 0.02130162488
G57: 2014-03-08 | H57: 2014-03-09 | I57: 1 | J57: 360 | K57: 0.002777777778 | L57: 0.02010162488 | M57: 0.0012 | N57: 0.02130162488 | O57: 0.005917118 | P57: 0.113704313 | Q57: 0 | R57: 0 | S57: 0 | T57: 0.02130162488
G58: 2014-03-09 | H58: 2014-03-10 | I58: 1 | J58: 360 | K58: 0.002777777778 | L58: 0.02010162488 | M58: 0.0012 | N58: 0.02130162488 | O58: 0.005917118 | P58: 0.119621431 | Q58: 0 | R58: 0 | S58: 0 | T58: 0.02130162488
G59: 2014-03-10 | H59: 2014-03-11 | I59: 1 | J59: 360 | K59: 0.002777777778 | L59: 0.02010162488 | M59: 0.0012 | N59: 0.02130162488 | O59: 0.005917118 | P59: 0.125538549 | Q59: 0 | R59: 0 | S59: 0 | T59: 0.02130162488
G60: 2014-03-11 | H60: 2014-03-12 | I60: 1 | J60: 360 | K60: 0.002777777778 | L60: 0.02010162488 | M60: 0.0012 | N60: 0.02130162488 | O60: 0.005917118 | P60: 0.131455667 | Q60: 0 | R60: 0 | S60: 0 | T60: 0.02130162488
G61: 2014-03-12 | H61: 2014-03-13 | I61: 1 | J61: 360 | K61: 0.002777777778 | L61: 0.02010162488 | M61: 0.0012 | N61: 0.02130162488 | O61: 0.005917118 | P61: 0.137372785 | Q61: 0 | R61: 0 | S61: 0 | T61: 0.02130162488
G62: 2014-03-13 | H62: 2014-03-14 | I62: 1 | J62: 360 | K62: 0.002777777778 | L62: 0.02010162488 | M62: 0.0012 | N62: 0.02130162488 | O62: 0.005917118 | P62: 0.143289903 | Q62: 0 | R62: 0 | S62: 0 | T62: 0.02130162488
G63: 2014-03-14 | H63: 2014-03-15 | I63: 1 | J63: 360 | K63: 0.002777777778 | L63: 0.02010162488 | M63: 0.0012 | N63: 0.02130162488 | O63: 0.005917118 | P63: =+P62+O63-Q62 -> 0.149207021 | Q63: 0 | R63: 0 | S63: 0 | T63: 0.02130162488
G64: 2014-03-15 | H64: 2014-03-16 | I64: 1 | J64: 360 | K64: 0.002777777778 | L64: 0.02010162488 | M64: 0.0012 | N64: 0.02130162488 | O64: 0.005917118 | P64: 0.155124139 | Q64: 0 | R64: 0 | S64: 0 | T64: 0.02130162488
G65: 2014-03-16 | H65: 2014-03-17 | I65: 1 | J65: 360 | K65: 0.002777777778 | L65: 0.02010162488 | M65: 0.0012 | N65: 0.02130162488 | O65: 0.005917118 | P65: 0.161041257 | Q65: 0 | R65: 0 | S65: 0 | T65: 0.02130162488
G66: 2014-03-17 | H66: 2014-03-18 | I66: 1 | J66: 360 | K66: 0.002777777778 | L66: 0.02010162488 | M66: 0.0012 | N66: 0.02130162488 | O66: 0.005917118 | P66: 0.166958375 | Q66: 0 | R66: 0 | S66: 0 | T66: 0.02130162488
G67: 2014-03-18 | H67: 2014-03-19 | I67: 1 | J67: 360 | K67: 0.002777777778 | L67: 0.02010162488 | M67: 0.0012 | N67: 0.02130162488 | O67: 0.005917118 | P67: 0.172875493 | Q67: 0 | R67: 0 | S67: 0 | T67: 0.02130162488
G68: 2014-03-19 | H68: 2014-03-20 | I68: 1 | J68: 360 | K68: 0.002777777778 | L68: 0.02010162488 | M68: 0.0012 | N68: 0.02130162488 | O68: 0.005917118 | P68: 0.178792611 | Q68: 0 | R68: 0 | S68: 0 | T68: 0.02130162488
G69: 2014-03-20 | H69: 2014-03-21 | I69: 1 | J69: 360 | K69: 0.002777777778 | L69: 0.02010162488 | M69: 0.0012 | N69: 0.02130162488 | O69: 0.005917118 | P69: 0.184709729 | Q69: 0 | R69: 0 | S69: 0 | T69: 0.02130162488
G70: 2014-03-21 | H70: 2014-03-22 | I70: 1 | J70: 360 | K70: 0.002777777778 | L70: 0.02010162488 | M70: 0.0012 | N70: 0.02130162488 | O70: 0.005917118 | P70: 0.190626847 | Q70: 0 | R70: 0 | S70: 0 | T70: 0.02130162488
G71: 2014-03-22 | H71: 2014-03-23 | I71: 1 | J71: 360 | K71: 0.002777777778 | L71: 0.02010162488 | M71: 0.0012 | N71: 0.02130162488 | O71: 0.005917118 | P71: =+P70+O71-Q70 -> 0.196543965 | Q71: 0 | R71: 0 | S71: 0 | T71: 0.02130162488
G72: 2014-03-23 | H72: 2014-03-24 | I72: 1 | J72: 360 | K72: 0.002777777778 | L72: 0.02010162488 | M72: 0.0012 | N72: 0.02130162488 | O72: 0.005917118 | P72: 0.202461083 | Q72: 0 | R72: 0 | S72: 0 | T72: 0.02130162488
G73: 2014-03-24 | H73: 2014-03-25 | I73: 1 | J73: 360 | K73: 0.002777777778 | L73: 0.02010162488 | M73: 0.0012 | N73: 0.02130162488 | O73: 0.005917118 | P73: 0.208378201 | Q73: 0 | R73: 0 | S73: 0 | T73: 0.02130162488
G74: 2014-03-25 | H74: 2014-03-26 | I74: 1 | J74: 360 | K74: 0.002777777778 | L74: 0.02010162488 | M74: 0.0012 | N74: 0.02130162488 | O74: 0.005917118 | P74: 0.214295319 | Q74: 0 | R74: 0 | S74: 0 | T74: 0.02130162488
G75: 2014-03-26 | H75: 2014-03-27 | I75: 1 | J75: 360 | K75: 0.002777777778 | L75: 0.02010162488 | M75: 0.0012 | N75: 0.02130162488 | O75: 0.005917118 | P75: 0.220212437 | Q75: 0 | R75: 0 | S75: 0 | T75: 0.02130162488
G76: 2014-03-27 | H76: 2014-03-28 | I76: 1 | J76: 360 | K76: 0.002777777778 | L76: 0.02010162488 | M76: 0.0012 | N76: 0.02130162488 | O76: 0.005917118 | P76: 0.226129555 | Q76: 0 | R76: 0 | S76: 0 | T76: 0.02130162488
G77: 2014-03-28 | H77: 2014-03-29 | I77: 1 | J77: 360 | K77: 0.002777777778 | L77: 0.02010162488 | M77: 0.0012 | N77: 0.02130162488 | O77: 0.005917118 | P77: 0.232046673 | Q77: 0 | R77: 0 | S77: 0 | T77: 0.02130162488
G78: 2014-03-29 | H78: 2014-03-30 | I78: 1 | J78: 360 | K78: 0.002777777778 | L78: 0.02010162488 | M78: 0.0012 | N78: 0.02130162488 | O78: 0.005917118 | P78: 0.237963791 | Q78: 0 | R78: 0 | S78: 0 | T78: 0.02130162488
G79: 2014-03-30 | H79: 2014-03-31 | I79: 1 | J79: 360 | K79: 0.002777777778 | L79: 0.02010162488 | M79: 0.0012 | N79: 0.02130162488 | O79: 0.005917118 | P79: 0.243880909 | Q79: 0 | R79: 0 | S79: 0 | T79: 0.02130162488
G80: 2014-03-31 | H80: 2014-04-01 | I80: 1 | J80: 360 | K80: 0.002777777778 | L80: 0.02010162488 | M80: 0.0012 | N80: 0.02130162488 | O80: 0.005917118 | P80: 0.249798027 | Q80: 0 | R80: 0 | S80: 0 | T80: 0.02130162488
G81: 2014-04-01 | H81: 2014-04-02 | I81: 1 | J81: 360 | K81: 0.002777777778 | L81: 0.02010162488 | M81: 0.0012 | N81: 0.02130162488 | O81: 0.005917118 | P81: 0.255715145 | Q81: 0 | R81: 0 | S81: 0 | T81: 0.02130162488
G82: 2014-04-02 | H82: 2014-04-03 | I82: 1 | J82: 360 | K82: 0.002777777778 | L82: 0.02010162488 | M82: 0.0012 | N82: 0.02130162488 | O82: 0.005917118 | P82: 0.261632263 | Q82: 0 | R82: 0 | S82: 0 | T82: 0.02130162488
G83: 2014-04-03 | H83: 2014-04-04 | I83: 1 | J83: 360 | K83: 0.002777777778 | L83: 0.02010162488 | M83: 0.0012 | N83: 0.02130162488 | O83: 0.005917118 | P83: 0.267549381 | Q83: 0 | R83: 0 | S83: 0 | T83: 0.02130162488
G84: 2014-04-04 | H84: 2014-04-05 | I84: 1 | J84: 360 | K84: 0.002777777778 | L84: 0.02010162488 | M84: 0.0012 | N84: 0.02130162488 | O84: 0.005917118 | P84: 0.273466499 | Q84: 0 | R84: 0 | S84: 0 | T84: 0.02130162488
G85: 2014-04-05 | H85: 2014-04-06 | I85: 1 | J85: 360 | K85: 0.002777777778 | L85: 0.02010162488 | M85: =+$C$11 -> 0.0012 | N85: 0.02130162488 | O85: 0.005917118 | P85: 0.279383617 | Q85: 0 | R85: 0 | S85: 0 | T85: 0.02130162488
G86: 2014-04-06 | H86: =+G86+1 -> 2014-04-07 | I86: =+H86-G86 -> 1 | J86: 360 | K86: =I86/J86 -> 0.002777777778 | L86: 0.02010162488 | M86: 0.0012 | N86: =MAX(0,M86+L86) -> 0.02130162488 | O86: =ROUND(N86*$C$10*K86,9) -> 0.005917118 | P86: 0.285300735 | Q86: 0 | R86: 0 | S86: =+R86+Q86 -> 0 | T86: =L86+$C$13 -> 0.02130162488
G87: =+H86 -> 2014-04-07 | H87: 2014-04-08 | I87: 1 | J87: 360 | K87: 0.002777777778 | L87: 0.02010162488 | M87: 0.0012 | N87: 0.02130162488 | O87: 0.005917118 | P87: =+P86+O87-Q86 -> 0.291217853 | Q87: 0 | R87: 0 | S87: 0 | T87: 0.02130162488
G88: 2014-04-08 | H88: 2014-04-09 | I88: 1 | J88: 360 | K88: 0.002777777778 | L88: 0.02010162488 | M88: 0.0012 | N88: 0.02130162488 | O88: 0.005917118 | P88: 0.297134971 | Q88: 0 | R88: 0 | S88: 0 | T88: 0.02130162488
G89: 2014-04-09 | H89: 2014-04-10 | I89: 1 | J89: 360 | K89: 0.002777777778 | L89: 0.02010162488 | M89: 0.0012 | N89: 0.02130162488 | O89: 0.005917118 | P89: 0.303052089 | Q89: 0 | R89: 0 | S89: 0 | T89: 0.02130162488
G90: 2014-04-10 | H90: 2014-04-11 | I90: 1 | J90: 360 | K90: 0.002777777778 | L90: 0.02010162488 | M90: 0.0012 | N90: 0.02130162488 | O90: 0.005917118 | P90: 0.308969207 | Q90: 0 | R90: 0 | S90: 0 | T90: 0.02130162488
G91: 2014-04-11 | H91: 2014-04-12 | I91: 1 | J91: 360 | K91: 0.002777777778 | L91: 0.02010162488 | M91: 0.0012 | N91: 0.02130162488 | O91: 0.005917118 | P91: 0.314886325 | Q91: 0 | R91: 0 | S91: 0 | T91: 0.02130162488
G92: 2014-04-12 | H92: 2014-04-13 | I92: 1 | J92: 360 | K92: 0.002777777778 | L92: 0.02010162488 | M92: 0.0012 | N92: 0.02130162488 | O92: 0.005917118 | P92: 0.320803443 | Q92: 0 | R92: 0 | S92: 0 | T92: 0.02130162488
G93: 2014-04-13 | H93: 2014-04-14 | I93: 1 | J93: 360 | K93: 0.002777777778 | L93: 0.02010162488 | M93: 0.0012 | N93: 0.02130162488 | O93: 0.005917118 | P93: 0.326720561 | Q93: 0 | R93: 0 | S93: 0 | T93: 0.02130162488
G94: 2014-04-14 | H94: 2014-04-15 | I94: 1 | J94: 360 | K94: 0.002777777778 | L94: 0.02010162488 | M94: 0.0012 | N94: 0.02130162488 | O94: 0.005917118 | P94: 0.332637679 | Q94: 0 | R94: 0 | S94: 0 | T94: 0.02130162488
G95: 2014-04-15 | H95: 2014-04-16 | I95: 1 | J95: 360 | K95: 0.002777777778 | L95: 0.02010162488 | M95: 0.0012 | N95: 0.02130162488 | O95: 0.005917118 | P95: 0.338554797 | Q95: 0 | R95: 0 | S95: 0 | T95: 0.02130162488
G96: 2014-04-16 | H96: 2014-04-17 | I96: 1 | J96: 360 | K96: 0.002777777778 | L96: 0.02010162488 | M96: 0.0012 | N96: 0.02130162488 | O96: 0.005917118 | P96: 0.344471915 | Q96: 0 | R96: 0 | S96: 0 | T96: 0.02130162488
G97: 2014-04-17 | H97: 2014-04-18 | I97: 1 | J97: 360 | K97: 0.002777777778 | L97: 0.02010162488 | M97: 0.0012 | N97: 0.02130162488 | O97: 0.005917118 | P97: 0.350389033 | Q97: 0 | R97: 0 | S97: 0 | T97: 0.02130162488
G98: 2014-04-18 | H98: 2014-04-19 | I98: 1 | J98: 360 | K98: 0.002777777778 | L98: 0.02010162488 | M98: 0.0012 | N98: 0.02130162488 | O98: 0.005917118 | P98: 0.356306151 | Q98: 0 | R98: 0 | S98: 0 | T98: 0.02130162488
G99: 2014-04-19 | H99: 2014-04-20 | I99: 1 | J99: 360 | K99: 0.002777777778 | L99: 0.02010162488 | M99: 0.0012 | N99: 0.02130162488 | O99: 0.005917118 | P99: 0.362223269 | Q99: 0 | R99: 0 | S99: 0 | T99: 0.02130162488
G100: 2014-04-20 | H100: 2014-04-21 | I100: 1 | J100: 360 | K100: 0.002777777778 | L100: 0.02010162488 | M100: 0.0012 | N100: 0.02130162488 | O100: 0.005917118 | P100: 0.368140387 | Q100: 0 | R100: 0 | S100: 0 | T100: 0.02130162488
G101: 2014-04-21 | H101: 2014-04-22 | I101: 1 | J101: 360 | K101: 0.002777777778 | L101: 0.02010162488 | M101: 0.0012 | N101: 0.02130162488 | O101: 0.005917118 | P101: 0.374057505 | Q101: 0 | R101: 0 | S101: 0 | T101: 0.02130162488
G102: 2014-04-22 | H102: 2014-04-23 | I102: 1 | J102: 360 | K102: 0.002777777778 | L102: 0.02010162488 | M102: 0.0012 | N102: 0.02130162488 | O102: 0.005917118 | P102: 0.379974623 | Q102: 0 | R102: 0 | S102: 0 | T102: 0.02130162488
G103: 2014-04-23 | H103: 2014-04-24 | I103: 1 | J103: 360 | K103: 0.002777777778 | L103: 0.02010162488 | M103: 0.0012 | N103: 0.02130162488 | O103: 0.005917118 | P103: 0.385891741 | Q103: 0 | R103: 0 | S103: 0 | T103: 0.02130162488
G104: 2014-04-24 | H104: 2014-04-25 | I104: 1 | J104: 360 | K104: 0.002777777778 | L104: 0.02010162488 | M104: 0.0012 | N104: 0.02130162488 | O104: 0.005917118 | P104: 0.391808859 | Q104: 0 | R104: 0 | S104: 0 | T104: 0.02130162488
G105: 2014-04-25 | H105: 2014-04-26 | I105: 1 | J105: 360 | K105: 0.002777777778 | L105: 0.02010162488 | M105: 0.0012 | N105: 0.02130162488 | O105: 0.005917118 | P105: 0.397725977 | Q105: 0 | R105: 0 | S105: 0 | T105: 0.02130162488
G106: 2014-04-26 | H106: 2014-04-27 | I106: 1 | J106: 360 | K106: 0.002777777778 | L106: 0.02010162488 | M106: 0.0012 | N106: 0.02130162488 | O106: 0.005917118 | P106: 0.403643095 | Q106: 0 | R106: 0 | S106: 0 | T106: 0.02130162488
G107: 2014-04-27 | H107: 2014-04-28 | I107: 1 | J107: 360 | K107: 0.002777777778 | L107: 0.02010162488 | M107: 0.0012 | N107: 0.02130162488 | O107: 0.005917118 | P107: 0.409560213 | Q107: 0 | R107: 0 | S107: 0 | T107: 0.02130162488
G108: 2014-04-28 | H108: 2014-04-29 | I108: 1 | J108: 360 | K108: 0.002777777778 | L108: 0.02010162488 | M108: 0.0012 | N108: 0.02130162488 | O108: 0.005917118 | P108: 0.415477331 | Q108: 0 | R108: 0 | S108: 0 | T108: 0.02130162488
G109: 2014-04-29 | H109: 2014-04-30 | I109: 1 | J109: 360 | K109: 0.002777777778 | L109: 0.02010162488 | M109: 0.0012 | N109: 0.02130162488 | O109: 0.005917118 | P109: =+P108+O109-Q108 -> 0.421394449 | Q109: =P109 -> 0.421394449 | R109: 0 | S109: 0.421394449 | T109: 0.02130162488 | U109: =ROUND((1+AVERAGE(T49:T109)*SUM(K49:K109)),9) -> 1.003609442 | V109: =ROUND(U109,9) -> 1.003609442 | W109: =ROUND(S109/V109,9) -> 0.41987892
G110: 2014-04-30 | H110: 2014-05-01 | I110: 1 | J110: 360 | K110: 0.002777777778 | L110: 0.02010162488 | M110: 0.0012 | N110: 0.02130162488 | O110: 0.005917118 | P110: 0.005917118 | Q110: 0 | R110: 0 | S110: 0 | T110: 0.02130162488
G111: 2014-05-01 | H111: 2014-05-02 | I111: 1 | J111: 360 | K111: 0.002777777778 | L111: 0.02010162488 | M111: 0.0012 | N111: 0.02130162488 | O111: 0.005917118 | P111: 0.011834236 | Q111: 0 | R111: 0 | S111: 0 | T111: 0.02130162488
G112: 2014-05-02 | H112: 2014-05-03 | I112: 1 | J112: 360 | K112: 0.002777777778 | L112: 0.02010162488 | M112: =+$C$11 -> 0.0012 | N112: =MAX(0,M112+L112) -> 0.02130162488 | O112: 0.005917118 | P112: =+P111+O112-Q111 -> 0.017751354 | Q112: 0 | R112: 0 | S112: =+R112+Q112 -> 0 | T112: 0.02130162488
G113: 2014-05-03 | H113: 2014-05-04 | I113: 1 | J113: 360 | K113: 0.002777777778 | L113: 0.02010162488 | M113: 0.0012 | N113: 0.02130162488 | O113: 0.005917118 | P113: 0.023668472 | Q113: 0 | R113: 0 | S113: 0 | T113: 0.02130162488
G114: 2014-05-04 | H114: 2014-05-05 | I114: 1 | J114: 360 | K114: 0.002777777778 | L114: 0.02010162488 | M114: 0.0012 | N114: 0.02130162488 | O114: 0.005917118 | P114: 0.02958559 | Q114: 0 | R114: 0 | S114: 0 | T114: 0.02130162488
G115: 2014-05-05 | H115: 2014-05-06 | I115: 1 | J115: 360 | K115: 0.002777777778 | L115: 0.02010162488 | M115: 0.0012 | N115: 0.02130162488 | O115: 0.005917118 | P115: 0.035502708 | Q115: 0 | R115: 0 | S115: 0 | T115: 0.02130162488
G116: 2014-05-06 | H116: 2014-05-07 | I116: 1 | J116: 360 | K116: 0.002777777778 | L116: 0.02010162488 | M116: 0.0012 | N116: 0.02130162488 | O116: 0.005917118 | P116: 0.041419826 | Q116: 0 | R116: 0 | S116: 0 | T116: 0.02130162488
G117: 2014-05-07 | H117: 2014-05-08 | I117: 1 | J117: 360 | K117: 0.002777777778 | L117: 0.02010162488 | M117: 0.0012 | N117: 0.02130162488 | O117: 0.005917118 | P117: 0.047336944 | Q117: 0 | R117: 0 | S117: 0 | T117: 0.02130162488
G118: 2014-05-08 | H118: 2014-05-09 | I118: 1 | J118: 360 | K118: 0.002777777778 | L118: =L117 -> 0.02010162488 | M118: 0.0012 | N118: 0.02130162488 | O118: 0.005917118 | P118: 0.053254062 | Q118: 0 | R118: 0 | S118: 0 | T118: 0.02130162488
G119: 2014-05-09 | H119: 2014-05-10 | I119: 1 | J119: 360 | K119: 0.002777777778 | L119: 0.02010162488 | M119: 0.0012 | N119: 0.02130162488 | O119: 0.005917118 | P119: 0.05917118 | Q119: 0 | R119: 0 | S119: 0 | T119: 0.02130162488
G120: 2014-05-10 | H120: 2014-05-11 | I120: 1 | J120: 360 | K120: 0.002777777778 | L120: 0.02010162488 | M120: 0.0012 | N120: 0.02130162488 | O120: 0.005917118 | P120: 0.065088298 | Q120: 0 | R120: 0 | S120: 0 | T120: 0.02130162488
G121: 2014-05-11 | H121: 2014-05-12 | I121: 1 | J121: 360 | K121: 0.002777777778 | L121: 0.02010162488 | M121: 0.0012 | N121: 0.02130162488 | O121: 0.005917118 | P121: 0.071005416 | Q121: 0 | R121: 0 | S121: 0 | T121: 0.02130162488
G122: 2014-05-12 | H122: 2014-05-13 | I122: 1 | J122: 360 | K122: 0.002777777778 | L122: 0.02010162488 | M122: 0.0012 | N122: 0.02130162488 | O122: 0.005917118 | P122: 0.076922534 | Q122: 0 | R122: 0 | S122: 0 | T122: 0.02130162488
G123: 2014-05-13 | H123: 2014-05-14 | I123: 1 | J123: 360 | K123: 0.002777777778 | L123: 0.02010162488 | M123: 0.0012 | N123: 0.02130162488 | O123: 0.005917118 | P123: 0.082839652 | Q123: 0 | R123: 0 | S123: 0 | T123: 0.02130162488
G124: 2014-05-14 | H124: 2014-05-15 | I124: 1 | J124: 360 | K124: 0.002777777778 | L124: 0.02010162488 | M124: 0.0012 | N124: 0.02130162488 | O124: 0.005917118 | P124: 0.08875677 | Q124: 0 | R124: 0 | S124: 0 | T124: 0.02130162488
G125: 2014-05-15 | H125: 2014-05-16 | I125: 1 | J125: 360 | K125: 0.002777777778 | L125: 0.02010162488 | M125: 0.0012 | N125: 0.02130162488 | O125: 0.005917118 | P125: 0.094673888 | Q125: 0 | R125: 0 | S125: 0 | T125: 0.02130162488
G126: 2014-05-16 | H126: 2014-05-17 | I126: 1 | J126: 360 | K126: 0.002777777778 | L126: 0.02010162488 | M126: 0.0012 | N126: 0.02130162488 | O126: 0.005917118 | P126: 0.100591006 | Q126: 0 | R126: 0 | S126: 0 | T126: 0.02130162488
G127: 2014-05-17 | H127: 2014-05-18 | I127: 1 | J127: 360 | K127: 0.002777777778 | L127: 0.02010162488 | M127: 0.0012 | N127: 0.02130162488 | O127: 0.005917118 | P127: 0.106508124 | Q127: 0 | R127: 0 | S127: 0 | T127: 0.02130162488
G128: 2014-05-18 | H128: 2014-05-19 | I128: 1 | J128: 360 | K128: 0.002777777778 | L128: 0.02010162488 | M128: 0.0012 | N128: 0.02130162488 | O128: 0.005917118 | P128: 0.112425242 | Q128: 0 | R128: 0 | S128: 0 | T128: 0.02130162488
G129: 2014-05-19 | H129: 2014-05-20 | I129: 1 | J129: 360 | K129: 0.002777777778 | L129: 0.02010162488 | M129: 0.0012 | N129: 0.02130162488 | O129: 0.005917118 | P129: 0.11834236 | Q129: 0 | R129: 0 | S129: 0 | T129: 0.02130162488
G130: 2014-05-20 | H130: 2014-05-21 | I130: 1 | J130: 360 | K130: 0.002777777778 | L130: 0.02010162488 | M130: 0.0012 | N130: 0.02130162488 | O130: 0.005917118 | P130: 0.124259478 | Q130: 0 | R130: 0 | S130: 0 | T130: 0.02130162488
G131: 2014-05-21 | H131: 2014-05-22 | I131: 1 | J131: 360 | K131: 0.002777777778 | L131: 0.02010162488 | M131: 0.0012 | N131: 0.02130162488 | O131: 0.005917118 | P131: 0.130176596 | Q131: 0 | R131: 0 | S131: 0 | T131: 0.02130162488
G132: 2014-05-22 | H132: 2014-05-23 | I132: 1 | J132: 360 | K132: 0.002777777778 | L132: 0.02010162488 | M132: 0.0012 | N132: 0.02130162488 | O132: 0.005917118 | P132: 0.136093714 | Q132: 0 | R132: 0 | S132: 0 | T132: 0.02130162488
G133: 2014-05-23 | H133: 2014-05-24 | I133: 1 | J133: 360 | K133: 0.002777777778 | L133: 0.02010162488 | M133: 0.0012 | N133: 0.02130162488 | O133: 0.005917118 | P133: 0.142010832 | Q133: 0 | R133: 0 | S133: 0 | T133: 0.02130162488
G134: 2014-05-24 | H134: 2014-05-25 | I134: 1 | J134: 360 | K134: 0.002777777778 | L134: 0.02010162488 | M134: 0.0012 | N134: 0.02130162488 | O134: 0.005917118 | P134: 0.14792795 | Q134: 0 | R134: 0 | S134: 0 | T134: 0.02130162488
G135: 2014-05-25 | H135: 2014-05-26 | I135: 1 | J135: 360 | K135: 0.002777777778 | L135: 0.02010162488 | M135: 0.0012 | N135: 0.02130162488 | O135: 0.005917118 | P135: 0.153845068 | Q135: 0 | R135: 0 | S135: 0 | T135: 0.02130162488
G136: 2014-05-26 | H136: 2014-05-27 | I136: 1 | J136: 360 | K136: 0.002777777778 | L136: 0.02010162488 | M136: 0.0012 | N136: 0.02130162488 | O136: 0.005917118 | P136: 0.159762186 | Q136: 0 | R136: 0 | S136: 0 | T136: 0.02130162488
G137: 2014-05-27 | H137: 2014-05-28 | I137: 1 | J137: 360 | K137: 0.002777777778 | L137: 0.02010162488 | M137: 0.0012 | N137: 0.02130162488 | O137: 0.005917118 | P137: 0.165679304 | Q137: 0 | R137: 0 | S137: 0 | T137: 0.02130162488
G138: 2014-05-28 | H138: 2014-05-29 | I138: 1 | J138: 360 | K138: 0.002777777778 | L138: 0.02010162488 | M138: 0.0012 | N138: 0.02130162488 | O138: 0.005917118 | P138: 0.171596422 | Q138: 0 | R138: 0 | S138: 0 | T138: 0.02130162488
G139: 2014-05-29 | H139: 2014-05-30 | I139: 1 | J139: 360 | K139: 0.002777777778 | L139: 0.02010162488 | M139: 0.0012 | N139: 0.02130162488 | O139: 0.005917118 | P139: 0.17751354 | Q139: 0 | R139: 0 | S139: 0 | T139: 0.02130162488
G140: 2014-05-30 | H140: 2014-05-31 | I140: 1 | J140: 360 | K140: 0.002777777778 | L140: 0.02010162488 | M140: 0.0012 | N140: 0.02130162488 | O140: 0.005917118 | P140: 0.183430658 | Q140: 0 | R140: 0 | S140: 0 | T140: 0.02130162488
G141: 2014-05-31 | H141: 2014-06-01 | I141: 1 | J141: 360 | K141: 0.002777777778 | L141: 0.02010162488 | M141: 0.0012 | N141: 0.02130162488 | O141: 0.005917118 | P141: 0.189347776 | Q141: 0 | R141: 0 | S141: 0 | T141: 0.02130162488
G142: 2014-06-01 | H142: 2014-06-02 | I142: 1 | J142: 360 | K142: 0.002777777778 | L142: 0.02010162488 | M142: 0.0012 | N142: 0.02130162488 | O142: 0.005917118 | P142: 0.195264894 | Q142: 0 | R142: 0 | S142: 0 | T142: 0.02130162488
G143: 2014-06-02 | H143: 2014-06-03 | I143: 1 | J143: 360 | K143: 0.002777777778 | L143: 0.02010162488 | M143: 0.0012 | N143: 0.02130162488 | O143: 0.005917118 | P143: 0.201182012 | Q143: 0 | R143: 0 | S143: 0 | T143: 0.02130162488
G144: 2014-06-03 | H144: 2014-06-04 | I144: 1 | J144: 360 | K144: 0.002777777778 | L144: 0.02010162488 | M144: 0.0012 | N144: 0.02130162488 | O144: 0.005917118 | P144: 0.20709913 | Q144: 0 | R144: 0 | S144: 0 | T144: 0.02130162488
G145: 2014-06-04 | H145: 2014-06-05 | I145: 1 | J145: 360 | K145: 0.002777777778 | L145: 0.02010162488 | M145: 0.0012 | N145: 0.02130162488 | O145: 0.005917118 | P145: 0.213016248 | Q145: 0 | R145: 0 | S145: 0 | T145: 0.02130162488
G146: 2014-06-05 | H146: 2014-06-06 | I146: 1 | J146: 360 | K146: 0.002777777778 | L146: 0.02010162488 | M146: 0.0012 | N146: 0.02130162488 | O146: 0.005917118 | P146: 0.218933366 | Q146: 0 | R146: 0 | S146: 0 | T146: 0.02130162488
G147: 2014-06-06 | H147: 2014-06-07 | I147: 1 | J147: 360 | K147: 0.002777777778 | L147: 0.02010162488 | M147: 0.0012 | N147: 0.02130162488 | O147: 0.005917118 | P147: 0.224850484 | Q147: 0 | R147: 0 | S147: 0 | T147: 0.02130162488
G148: 2014-06-07 | H148: 2014-06-08 | I148: 1 | J148: 360 | K148: 0.002777777778 | L148: 0.02010162488 | M148: 0.0012 | N148: 0.02130162488 | O148: 0.005917118 | P148: 0.230767602 | Q148: 0 | R148: 0 | S148: 0 | T148: 0.02130162488
G149: 2014-06-08 | H149: 2014-06-09 | I149: 1 | J149: 360 | K149: 0.002777777778 | L149: 0.02010162488 | M149: =+$C$11 -> 0.0012 | N149: 0.02130162488 | O149: 0.005917118 | P149: 0.23668472 | Q149: 0 | R149: 0 | S149: 0 | T149: 0.02130162488
G150: 2014-06-09 | H150: =+G150+1 -> 2014-06-10 | I150: =+H150-G150 -> 1 | J150: 360 | K150: =I150/J150 -> 0.002777777778 | L150: 0.02010162488 | M150: 0.0012 | N150: =MAX(0,M150+L150) -> 0.02130162488 | O150: =ROUND(N150*$C$10*K150,9) -> 0.005917118 | P150: 0.242601838 | Q150: 0 | R150: 0 | S150: =+R150+Q150 -> 0 | T150: =L150+$C$13 -> 0.02130162488
G151: =+H150 -> 2014-06-10 | H151: 2014-06-11 | I151: 1 | J151: 360 | K151: 0.002777777778 | L151: 0.02010162488 | M151: 0.0012 | N151: 0.02130162488 | O151: 0.005917118 | P151: =+P150+O151-Q150 -> 0.248518956 | Q151: 0 | R151: 0 | S151: 0 | T151: 0.02130162488
G152: 2014-06-11 | H152: 2014-06-12 | I152: 1 | J152: 360 | K152: 0.002777777778 | L152: 0.02010162488 | M152: 0.0012 | N152: 0.02130162488 | O152: 0.005917118 | P152: 0.254436074 | Q152: 0 | R152: 0 | S152: 0 | T152: 0.02130162488
G153: 2014-06-12 | H153: 2014-06-13 | I153: 1 | J153: 360 | K153: 0.002777777778 | L153: 0.02010162488 | M153: 0.0012 | N153: 0.02130162488 | O153: 0.005917118 | P153: 0.260353192 | Q153: 0 | R153: 0 | S153: 0 | T153: 0.02130162488
G154: 2014-06-13 | H154: 2014-06-14 | I154: 1 | J154: 360 | K154: 0.002777777778 | L154: 0.02010162488 | M154: 0.0012 | N154: 0.02130162488 | O154: 0.005917118 | P154: 0.26627031 | Q154: 0 | R154: 0 | S154: 0 | T154: 0.02130162488
G155: 2014-06-14 | H155: 2014-06-15 | I155: 1 | J155: 360 | K155: 0.002777777778 | L155: 0.02010162488 | M155: 0.0012 | N155: 0.02130162488 | O155: 0.005917118 | P155: 0.272187428 | Q155: 0 | R155: 0 | S155: 0 | T155: 0.02130162488
G156: 2014-06-15 | H156: 2014-06-16 | I156: 1 | J156: 360 | K156: 0.002777777778 | L156: 0.02010162488 | M156: 0.0012 | N156: 0.02130162488 | O156: 0.005917118 | P156: 0.278104546 | Q156: 0 | R156: 0 | S156: 0 | T156: 0.02130162488
G157: 2014-06-16 | H157: 2014-06-17 | I157: 1 | J157: 360 | K157: 0.002777777778 | L157: 0.02010162488 | M157: 0.0012 | N157: 0.02130162488 | O157: 0.005917118 | P157: 0.284021664 | Q157: 0 | R157: 0 | S157: 0 | T157: 0.02130162488
G158: 2014-06-17 | H158: 2014-06-18 | I158: 1 | J158: 360 | K158: 0.002777777778 | L158: 0.02010162488 | M158: 0.0012 | N158: 0.02130162488 | O158: 0.005917118 | P158: 0.289938782 | Q158: 0 | R158: 0 | S158: 0 | T158: 0.02130162488
G159: 2014-06-18 | H159: 2014-06-19 | I159: 1 | J159: 360 | K159: 0.002777777778 | L159: 0.02010162488 | M159: 0.0012 | N159: 0.02130162488 | O159: 0.005917118 | P159: 0.2958559 | Q159: 0 | R159: 0 | S159: 0 | T159: 0.02130162488
G160: 2014-06-19 | H160: 2014-06-20 | I160: 1 | J160: 360 | K160: 0.002777777778 | L160: 0.02010162488 | M160: 0.0012 | N160: 0.02130162488 | O160: 0.005917118 | P160: 0.301773018 | Q160: 0 | R160: 0 | S160: 0 | T160: 0.02130162488
G161: 2014-06-20 | H161: 2014-06-21 | I161: 1 | J161: 360 | K161: 0.002777777778 | L161: 0.02010162488 | M161: 0.0012 | N161: 0.02130162488 | O161: 0.005917118 | P161: 0.307690136 | Q161: 0 | R161: 0 | S161: 0 | T161: 0.02130162488
G162: 2014-06-21 | H162: 2014-06-22 | I162: 1 | J162: 360 | K162: 0.002777777778 | L162: 0.02010162488 | M162: 0.0012 | N162: 0.02130162488 | O162: 0.005917118 | P162: 0.313607254 | Q162: 0 | R162: 0 | S162: 0 | T162: 0.02130162488
G163: 2014-06-22 | H163: 2014-06-23 | I163: 1 | J163: 360 | K163: 0.002777777778 | L163: 0.02010162488 | M163: 0.0012 | N163: 0.02130162488 | O163: 0.005917118 | P163: 0.319524372 | Q163: 0 | R163: 0 | S163: 0 | T163: 0.02130162488
G164: 2014-06-23 | H164: 2014-06-24 | I164: 1 | J164: 360 | K164: 0.002777777778 | L164: 0.02010162488 | M164: 0.0012 | N164: 0.02130162488 | O164: 0.005917118 | P164: 0.32544149 | Q164: 0 | R164: 0 | S164: 0 | T164: 0.02130162488
G165: 2014-06-24 | H165: 2014-06-25 | I165: 1 | J165: 360 | K165: 0.002777777778 | L165: 0.02010162488 | M165: 0.0012 | N165: 0.02130162488 | O165: 0.005917118 | P165: 0.331358608 | Q165: 0 | R165: 0 | S165: 0 | T165: 0.02130162488
G166: 2014-06-25 | H166: 2014-06-26 | I166: 1 | J166: 360 | K166: 0.002777777778 | L166: 0.02010162488 | M166: 0.0012 | N166: 0.02130162488 | O166: 0.005917118 | P166: 0.337275726 | Q166: 0 | R166: 0 | S166: 0 | T166: 0.02130162488
G167: 2014-06-26 | H167: 2014-06-27 | I167: 1 | J167: 360 | K167: 0.002777777778 | L167: 0.02010162488 | M167: 0.0012 | N167: 0.02130162488 | O167: 0.005917118 | P167: 0.343192844 | Q167: 0 | R167: 0 | S167: 0 | T167: 0.02130162488
G168: 2014-06-27 | H168: 2014-06-28 | I168: 1 | J168: 360 | K168: 0.002777777778 | L168: 0.02010162488 | M168: 0.0012 | N168: 0.02130162488 | O168: 0.005917118 | P168: 0.349109962 | Q168: 0 | R168: 0 | S168: 0 | T168: 0.02130162488
G169: 2014-06-28 | H169: 2014-06-29 | I169: 1 | J169: 360 | K169: 0.002777777778 | L169: 0.02010162488 | M169: 0.0012 | N169: 0.02130162488 | O169: 0.005917118 | P169: 0.35502708 | Q169: 0 | R169: 0 | S169: 0 | T169: 0.02130162488
G170: 2014-06-29 | H170: 2014-06-30 | I170: 1 | J170: 360 | K170: 0.002777777778 | L170: 0.02010162488 | M170: 0.0012 | N170: 0.02130162488 | O170: 0.005917118 | P170: 0.360944198 | Q170: 0 | R170: 0 | S170: 0 | T170: 0.02130162488
G171: 2014-06-30 | H171: 2014-07-01 | I171: 1 | J171: 360 | K171: 0.002777777778 | L171: 0.02010162488 | M171: 0.0012 | N171: 0.02130162488 | O171: 0.005917118 | P171: 0.366861316 | Q171: 0 | R171: 0 | S171: 0 | T171: 0.02130162488
G172: 2014-07-01 | H172: 2014-07-02 | I172: 1 | J172: 360 | K172: 0.002777777778 | L172: 0.02010162488 | M172: 0.0012 | N172: 0.02130162488 | O172: 0.005917118 | P172: 0.372778434 | Q172: 0 | R172: 0 | S172: 0 | T172: 0.02130162488
G173: 2014-07-02 | H173: 2014-07-03 | I173: 1 | J173: 360 | K173: 0.002777777778 | L173: 0.02010162488 | M173: 0.0012 | N173: 0.02130162488 | O173: 0.005917118 | P173: 0.378695552 | Q173: 0 | R173: 0 | S173: 0 | T173: 0.02130162488
G174: 2014-07-03 | H174: 2014-07-04 | I174: 1 | J174: 360 | K174: 0.002777777778 | L174: 0.02010162488 | M174: 0.0012 | N174: 0.02130162488 | O174: 0.005917118 | P174: 0.38461267 | Q174: 0 | R174: 0 | S174: 0 | T174: 0.02130162488
G175: 2014-07-04 | H175: 2014-07-05 | I175: 1 | J175: 360 | K175: 0.002777777778 | L175: 0.02010162488 | M175: 0.0012 | N175: 0.02130162488 | O175: 0.005917118 | P175: 0.390529788 | Q175: 0 | R175: 0 | S175: 0 | T175: 0.02130162488
G176: 2014-07-05 | H176: 2014-07-06 | I176: 1 | J176: 360 | K176: 0.002777777778 | L176: 0.02010162488 | M176: 0.0012 | N176: 0.02130162488 | O176: 0.005917118 | P176: 0.396446906 | Q176: 0 | R176: 0 | S176: 0 | T176: 0.02130162488
G177: 2014-07-06 | H177: 2014-07-07 | I177: 1 | J177: 360 | K177: 0.002777777778 | L177: 0.02010162488 | M177: 0.0012 | N177: 0.02130162488 | O177: 0.005917118 | P177: 0.402364024 | Q177: 0 | R177: 0 | S177: 0 | T177: 0.02130162488
G178: 2014-07-07 | H178: 2014-07-08 | I178: 1 | J178: 360 | K178: 0.002777777778 | L178: 0.02010162488 | M178: 0.0012 | N178: 0.02130162488 | O178: 0.005917118 | P178: 0.408281142 | Q178: 0 | R178: 0 | S178: 0 | T178: 0.02130162488
G179: 2014-07-08 | H179: 2014-07-09 | I179: 1 | J179: 360 | K179: 0.002777777778 | L179: 0.02010162488 | M179: 0.0012 | N179: 0.02130162488 | O179: 0.005917118 | P179: 0.41419826 | Q179: 0 | R179: 0 | S179: 0 | T179: 0.02130162488
G180: 2014-07-09 | H180: 2014-07-10 | I180: 1 | J180: 360 | K180: 0.002777777778 | L180: 0.02010162488 | M180: 0.0012 | N180: 0.02130162488 | O180: 0.005917118 | P180: 0.420115378 | Q180: 0 | R180: 0 | S180: 0 | T180: 0.02130162488
G181: 2014-07-10 | H181: 2014-07-11 | I181: 1 | J181: 360 | K181: 0.002777777778 | L181: 0.02010162488 | M181: 0.0012 | N181: 0.02130162488 | O181: 0.005917118 | P181: 0.426032496 | Q181: 0 | R181: 0 | S181: 0 | T181: 0.02130162488
G182: 2014-07-11 | H182: 2014-07-12 | I182: 1 | J182: 360 | K182: 0.002777777778 | L182: =L181 -> 0.02010162488 | M182: 0.0012 | N182: 0.02130162488 | O182: 0.005917118 | P182: 0.431949614 | Q182: 0 | R182: 0 | S182: 0 | T182: 0.02130162488
G183: 2014-07-12 | H183: 2014-07-13 | I183: 1 | J183: 360 | K183: 0.002777777778 | L183: 0.02010162488 | M183: 0.0012 | N183: 0.02130162488 | O183: 0.005917118 | P183: 0.437866732 | Q183: 0 | R183: 0 | S183: 0 | T183: 0.02130162488
G184: 2014-07-13 | H184: 2014-07-14 | I184: 1 | J184: 360 | K184: 0.002777777778 | L184: 0.02010162488 | M184: 0.0012 | N184: 0.02130162488 | O184: 0.005917118 | P184: 0.44378385 | Q184: 0 | R184: 0 | S184: 0 | T184: 0.02130162488
G185: 2014-07-14 | H185: 2014-07-15 | I185: 1 | J185: 360 | K185: 0.002777777778 | L185: 0.02010162488 | M185: 0.0012 | N185: 0.02130162488 | O185: 0.005917118 | P185: 0.449700968 | Q185: 0 | R185: 0 | S185: 0 | T185: 0.02130162488
G186: 2014-07-15 | H186: 2014-07-16 | I186: 1 | J186: 360 | K186: 0.002777777778 | L186: 0.02010162488 | M186: 0.0012 | N186: 0.02130162488 | O186: 0.005917118 | P186: 0.455618086 | Q186: 0 | R186: 0 | S186: 0 | T186: 0.02130162488
G187: 2014-07-16 | H187: 2014-07-17 | I187: 1 | J187: 360 | K187: 0.002777777778 | L187: 0.02010162488 | M187: 0.0012 | N187: 0.02130162488 | O187: 0.005917118 | P187: 0.461535204 | Q187: 0 | R187: 0 | S187: 0 | T187: 0.02130162488
G188: 2014-07-17 | H188: 2014-07-18 | I188: 1 | J188: 360 | K188: 0.002777777778 | L188: 0.02010162488 | M188: 0.0012 | N188: 0.02130162488 | O188: 0.005917118 | P188: 0.467452322 | Q188: 0 | R188: 0 | S188: 0 | T188: 0.02130162488
G189: 2014-07-18 | H189: 2014-07-19 | I189: 1 | J189: 360 | K189: 0.002777777778 | L189: 0.02010162488 | M189: 0.0012 | N189: 0.02130162488 | O189: 0.005917118 | P189: 0.47336944 | Q189: 0 | R189: 0 | S189: 0 | T189: 0.02130162488
G190: 2014-07-19 | H190: 2014-07-20 | I190: 1 | J190: 360 | K190: 0.002777777778 | L190: 0.02010162488 | M190: 0.0012 | N190: 0.02130162488 | O190: 0.005917118 | P190: 0.479286558 | Q190: 0 | R190: 0 | S190: 0 | T190: 0.02130162488
G191: 2014-07-20 | H191: 2014-07-21 | I191: 1 | J191: 360 | K191: 0.002777777778 | L191: 0.02010162488 | M191: 0.0012 | N191: 0.02130162488 | O191: 0.005917118 | P191: 0.485203676 | Q191: 0 | R191: 0 | S191: 0 | T191: 0.02130162488
G192: 2014-07-21 | H192: 2014-07-22 | I192: 1 | J192: 360 | K192: 0.002777777778 | L192: 0.02010162488 | M192: 0.0012 | N192: 0.02130162488 | O192: 0.005917118 | P192: 0.491120794 | Q192: 0 | R192: 0 | S192: 0 | T192: 0.02130162488
G193: 2014-07-22 | H193: 2014-07-23 | I193: 1 | J193: 360 | K193: 0.002777777778 | L193: 0.02010162488 | M193: 0.0012 | N193: 0.02130162488 | O193: 0.005917118 | P193: 0.497037912 | Q193: 0 | R193: 0 | S193: 0 | T193: 0.02130162488
G194: 2014-07-23 | H194: 2014-07-24 | I194: 1 | J194: 360 | K194: 0.002777777778 | L194: 0.02010162488 | M194: 0.0012 | N194: 0.02130162488 | O194: 0.005917118 | P194: 0.50295503 | Q194: 0 | R194: 0 | S194: 0 | T194: 0.02130162488
G195: 2014-07-24 | H195: 2014-07-25 | I195: 1 | J195: 360 | K195: 0.002777777778 | L195: 0.02010162488 | M195: 0.0012 | N195: 0.02130162488 | O195: 0.005917118 | P195: 0.508872148 | Q195: 0 | R195: 0 | S195: 0 | T195: 0.02130162488
G196: 2014-07-25 | H196: 2014-07-26 | I196: 1 | J196: 360 | K196: 0.002777777778 | L196: 0.02010162488 | M196: 0.0012 | N196: 0.02130162488 | O196: 0.005917118 | P196: 0.514789266 | Q196: 0 | R196: 0 | S196: 0 | T196: 0.02130162488
G197: 2014-07-26 | H197: 2014-07-27 | I197: 1 | J197: 360 | K197: 0.002777777778 | L197: 0.02010162488 | M197: 0.0012 | N197: 0.02130162488 | O197: 0.005917118 | P197: 0.520706384 | Q197: 0 | R197: 0 | S197: 0 | T197: 0.02130162488
G198: 2014-07-27 | H198: 2014-07-28 | I198: 1 | J198: 360 | K198: 0.002777777778 | L198: 0.02010162488 | M198: 0.0012 | N198: 0.02130162488 | O198: 0.005917118 | P198: 0.526623502 | Q198: 0 | R198: 0 | S198: 0 | T198: 0.02130162488
G199: 2014-07-28 | H199: 2014-07-29 | I199: 1 | J199: 360 | K199: 0.002777777778 | L199: 0.02010162488 | M199: 0.0012 | N199: 0.02130162488 | O199: 0.005917118 | P199: 0.53254062 | Q199: 0 | R199: 0 | S199: 0 | T199: 0.02130162488
G200: 2014-07-29 | H200: 2014-07-30 | I200: 1 | J200: 360 | K200: 0.002777777778 | L200: 0.02010162488 | M200: 0.0012 | N200: 0.02130162488 | O200: 0.005917118 | P200: 0.538457738 | Q200: 0 | R200: 0 | S200: 0 | T200: 0.02130162488
G201: 2014-07-30 | H201: 2014-07-31 | I201: 1 | J201: 360 | K201: 0.002777777778 | L201: 0.02010162488 | M201: 0.0012 | N201: 0.02130162488 | O201: 0.005917118 | P201: 0.544374856 | Q201: =P201 -> 0.544374856 | R201: 0 | S201: 0.544374856 | T201: 0.02130162488 | U201: =ROUND((1+AVERAGE(T110:T201)*SUM(K110:K201)),9) -> 1.005443749 | V201: =ROUND(U201*U109,9) -> 1.00907284 | W201: =ROUND(S201/V201,9) -> 0.539480238
G202: 2014-07-31 | H202: 2014-08-01 | I202: 1 | J202: 360 | K202: 0.002777777778 | L202: 0.02010162488 | M202: 0.0012 | N202: 0.02130162488 | O202: 0.005917118 | P202: 0.005917118 | Q202: 0 | R202: 0 | S202: 0 | T202: 0.02130162488
G203: 2014-08-01 | H203: 2014-08-02 | I203: 1 | J203: 360 | K203: 0.002777777778 | L203: 0.02010162488 | M203: 0.0012 | N203: 0.02130162488 | O203: 0.005917118 | P203: 0.011834236 | Q203: 0 | R203: 0 | S203: 0 | T203: 0.02130162488
G204: 2014-08-02 | H204: 2014-08-03 | I204: 1 | J204: 360 | K204: 0.002777777778 | L204: 0.02010162488 | M204: 0.0012 | N204: 0.02130162488 | O204: 0.005917118 | P204: 0.017751354 | Q204: 0 | R204: 0 | S204: 0 | T204: 0.02130162488
G205: 2014-08-03 | H205: 2014-08-04 | I205: 1 | J205: 360 | K205: 0.002777777778 | L205: 0.02010162488 | M205: 0.0012 | N205: 0.02130162488 | O205: 0.005917118 | P205: 0.023668472 | Q205: 0 | R205: 0 | S205: 0 | T205: 0.02130162488
... 545 more rows
